{"text_format":"1","workbook":"xlsx","n_sheets":5,"sheets":[" car'scod","migration","ALL DATA","find cost","total month cost"],"not_rendered":{"charts":0,"images":0,"macros":1,"external_links":1,"defined_names":5,"comments":0,"pivot_tables":0},"unopened":[],"bounds":{"document_bytes":16777216,"sheet_cells":100000,"rows_first":2000,"rows_last":500,"rows_between":2000,"halvings":0,"cell_chars":16384,"cell_head_chars":4096},"cells_cut":0,"cells_raw":0,"read":"whole","date_system":"1900"}

{"sheet":" car'scod","index":0,"n_rows":100,"n_cols":12,"rows_kept":100,"cut":false,"hidden":false,"merged":[]}
[null,null,"CHASSIS NO."]
[]
["CAR","HYUNDAI","SUZUKI","TOYOTA","ISUZU",null,null,null,"COLOR","TYPE","MODEL","CHASSIS NO."]
["HYUNDAI","PHG01904","TA02A-001834","ZE15047898","JALC1B1G2V7100406",null,null,null,"GREEN","TUCSON",1993,"PHG01904"]
["SUZUKI","PJG01386","G13BB-P06835 YG8VM-001260","ZE1-5050141",null,null,null,null,"SILVER ","GETZ",1994,"PJG01386"]
["TOYOTA","RFHJM80BP6S001058","TA02A-003711","ZE1-5063853",null,null,null,null,"WHITE","COROLLA ",1996,"RFHJM80BP6S001058"]
["ISUZU","KJF01363","TA02A-000934","ZE1-5032212",null,null,null,null,"BLACK","VITARA (ONE DOOR)",1997,"KJF01363"]
["car 1","KJG00918","TD01M-006739","ZE1-5054761",null,null,null,null,"GOLDEN","ELF",1999,"KJG00918"]
["car 2","RFHBU50BP7S000010","TC02M-000129","CE1-5006120",null,null,null,null,"GRAY","MINI BUS (VAN)",2000,"RFHBU50BP7S000010"]
["car 3","RFHBU50GP6S000328","TD01M-004866","ZE1-5017908",null,null,null,null,"BLUE","GRAND VITARA",2001,"RFHBU50GP6S000328"]
[null,"KHG00663","TA02A-000753","CE1-5008407",null,null,null,null,"RED","JIMNY",2002,"KHG00663"]
[null,"KJF01278","TA02A-002597","ZE1-5059013",null,null,null,null,null,"RAV4",2003,"KJF01278"]
[null,"PJG00171","TA02A-002210","ZE1-5008207",null,null,null,null,null,"VAN MINIBUS ",2004,"PJG00171"]
[null,"RFHJR80BP5S000001","JSAFJB43V00163740","ZE1-5053080",null,null,null,null,null,"VAN CURRY",2005,"RFHJR80BP5S000001"]
[null,"RFHJM80BP5S000061","YJ8VM-001270","ZE1-5015157",null,null,null,null,null,null,2006,"ZE1-5047898"]
[null,"PHG00722","YJ8VA-000575","ZE1-5008891",null,null,null,null,null,null,2007,"ZE1-5050141"]
[null,"RFHJN80BP6S000321","DA32-000533","ZE1-5013679",null,null,null,null,null,null,2010,"ZE1-5063853"]
[null,"PJG00100","TA02A-004414","ZE1-5136423",null,null,null,null,null,null,null,"RFHJM80BP5S000061"]
[null,"RFHJN80BP6S001218","TD01M-002713","CE1-5003486",null,null,null,null,null,null,null,"PHG00722"]
[null,"PHG01461","YJ8TM-00399","ZE1-5035216",null,null,null,null,null,null,null,"RFHJN80BP6S000321"]
[null,"PHG02534","YJ8TM-004747","ZE1-5137204",null,null,null,null,null,null,null,"PJG00100"]
[null,"PHG00986",null,"CE1-5000687",null,null,null,null,null,null,null,"RFHJN80BP6S001218"]
[null,"PHG01420",null,"ZE1-5014206",null,null,null,null,null,null,null,"PHG01461"]
[null,"PJG01031",null,"ZE1-5005846",null,null,null,null,null,null,null,"PHG02534"]
[null,"PHG02484",null,"ZE1-5057583",null,null,null,null,null,null,null,"PHG00986"]
[null,"QHG00027",null,"ZE1-5014219",null,null,null,null,null,null,null,"PHG01420"]
[null,"KHF00681",null,"ZE1-5034461",null,null,null,null,null,null,null,"ZE1-5032212"]
[null,"RFHBU50GP6S000265",null,"ZE1-5010190",null,null,null,null,null,null,null,"TA02A-001834"]
[null,"RFHJM80BP7S000527",null,"ZE1-5064874",null,null,null,null,null,null,null,"PJG01031"]
[null,"PHG00481",null,"CE1-5020064",null,null,null,null,null,null,null,"JALC1B1G2V7100406"]
[null,"PHG00197",null,"ZE1-7047352",null,null,null,null,null,null,null,"ZE1-5054761"]
[null,"RFHJM80BPAS000109",null,"SXA11-7121630",null,null,null,null,null,null,null,"CE1-5006120"]
[null,"RFHJR80BP5S000041",null,"ZE1-5076832",null,null,null,null,null,null,null,"ZE1-5017908"]
[null,null,null,"ZE1-5079510",null,null,null,null,null,null,null,"CE1-5008407"]
[null,null,null,"ZE1-5070472",null,null,null,null,null,null,null,"ZE1-5059013"]
[null,null,null,"ZE1-5029692",null,null,null,null,null,null,null,"ZE1-5008207"]
[null,null,null,"ZE1-5004563",null,null,null,null,null,null,null,"ZE1-5053080"]
[null,null,null,"ZE1-5008653",null,null,null,null,null,null,null,"ZE1-5015157"]
[null,null,null,"CE1-5007136",null,null,null,null,null,null,null,"PHG02484"]
[null,null,null,"ZE1-5138921",null,null,null,null,null,null,null,"ZE1-5008891"]
[null,null,null,"ZE1-5077702",null,null,null,null,null,null,null,"G13BB-P06835 YG8VM-001260"]
[null,null,null,"CE1-5022622",null,null,null,null,null,null,null,"QHG00027"]
[null,null,null,"CE1-5014765",null,null,null,null,null,null,null,"TA02A-003711"]
[null,null,null,"ZE1-5099278",null,null,null,null,null,null,null,"TA02A-000934"]
[null,null,null,"ZE1-5078135",null,null,null,null,null,null,null,"TD01M-006739"]
[null,null,null,"ZE1-5091605",null,null,null,null,null,null,null,"TC02M-000129"]
[null,null,null,"ZE1-5098916",null,null,null,null,null,null,null,"TD01M-004866"]
[null,null,null,"ZE1-5030432",null,null,null,null,null,null,null,"ZE1-5013679"]
[null,null,null,"ZE1-5051451",null,null,null,null,null,null,null,"KHF00681"]
[null,null,null,"ZE1-5122987",null,null,null,null,null,null,null,"RFHBU50GP6S000265"]
[null,null,null,"CE1-5024815",null,null,null,null,null,null,null,"RFHJM80BP7S000527"]
[null,null,null,null,null,null,null,null,null,null,null,"PHG00481"]
[null,null,null,null,null,null,null,null,null,null,null,"TA02A-000753"]
[null,null,null,null,null,null,null,null,null,null,null,"ZE1-5136423"]
[null,null,null,null,null,null,null,null,null,null,null,"CE1-5003486"]
[null,null,null,null,null,null,null,null,null,null,null,"ZE1-5035216"]
[null,null,null,null,null,null,null,null,null,null,null,"ZE1-5137204"]
[null,null,null,null,null,null,null,null,null,null,null,"CE1-5000687"]
[null,null,null,null,null,null,null,null,null,null,null,"ZE1-5014206"]
[null,null,null,null,null,null,null,null,null,null,null,"ZE1-5005846"]
[null,null,null,null,null,null,null,null,null,null,null,"ZE1-5057583"]
[null,null,null,null,null,null,null,null,null,null,null,"PHG00197"]
[null,null,null,null,null,null,null,null,null,null,null,"RFHJM80BPAS000109"]
[null,null,null,null,null,null,null,null,null,null,null,"ZE1-5014219"]
[null,null,null,null,null,null,null,null,null,null,null,"ZE1-5034461"]
[null,null,null,null,null,null,null,null,null,null,null,"TA02A-002597"]
[null,null,null,null,null,null,null,null,null,null,null,"ZE1-5010190"]
[null,null,null,null,null,null,null,null,null,null,null,"RFHJR80BP5S000041"]
[null,null,null,null,null,null,null,null,null,null,null,"TA02A-002210"]
[null,null,null,null,null,null,null,null,null,null,null,"ZE1-5064874"]
[null,null,null,null,null,null,null,null,null,null,null,"CE1-5020064"]
[null,null,null,null,null,null,null,null,null,null,null,"ZE1-7047352"]
[null,null,null,null,null,null,null,null,null,null,null,"JSAFJB43V00163740"]
[null,null,null,null,null,null,null,null,null,null,null,"SXA11-7121630"]
[null,null,null,null,null,null,null,null,null,null,null,"ZE1-5076832"]
[null,null,null,null,null,null,null,null,null,null,null,"YJ8VM-001270"]
[null,null,null,null,null,null,null,null,null,null,null,"YJ8VA-000575"]
[null,null,null,null,null,null,null,null,null,null,null,"ZE1-5079510"]
[null,null,null,null,null,null,null,null,null,null,null,"DA32-000533"]
[null,null,null,null,null,null,null,null,null,null,null,"ZE1-5070472"]
[null,null,null,null,null,null,null,null,null,null,null,"ZE1-5029692"]
[null,null,null,null,null,null,null,null,null,null,null,"ZE1-5004563"]
[null,null,null,null,null,null,null,null,null,null,null,"ZE1-5008653"]
[null,null,null,null,null,null,null,null,null,null,null,"TA02A-004414"]
[null,null,null,null,null,null,null,null,null,null,null,"CE1-5007136"]
[null,null,null,null,null,null,null,null,null,null,null,"ZE1-5138921"]
[null,null,null,null,null,null,null,null,null,null,null,"ZE1-5077702"]
[null,null,null,null,null,null,null,null,null,null,null,"CE1-5022622"]
[null,null,null,null,null,null,null,null,null,null,null,"CE1-5014765"]
[null,null,null,null,null,null,null,null,null,null,null,"ZE1-5099278"]
[null,null,null,null,null,null,null,null,null,null,null,"ZE1-5078135"]
[null,null,null,null,null,null,null,null,null,null,null,"ZE1-5091605"]
[null,null,null,null,null,null,null,null,null,null,null,"ZE1-5098916"]
[null,null,null,null,null,null,null,null,null,null,null,"ZE1-5030432"]
[null,null,null,null,null,null,null,null,null,null,null,"ZE1-5051451"]
[null,null,null,null,null,null,null,null,null,null,null,"ZE1-5122987"]
[null,null,null,null,null,null,null,null,null,null,null,"CE1-5024815"]
[null,null,null,null,null,null,null,null,null,null,null,"TD01M-002713"]
[null,null,null,null,null,null,null,null,null,null,null,"YJ8TM-00399"]
[null,null,null,null,null,null,null,null,null,null,null,"YJ8TM-004747"]

{"sheet":"migration","index":1,"n_rows":7,"n_cols":20,"rows_kept":7,"cut":false,"hidden":false,"merged":[[0,1,0,9],[4,15,4,18],[5,15,12,18]]}
[null,"New cars data migration"]
[]
[null,"CAR","COLOR","TYPE","MODEL","CHASSIS NO.","PRICE NTD","DATE","COMMISSION","QUANTITY","Transportation ","TAX","nots","to",null,null,null,null,null,"هذه ورقة الترحيل migration"]
[null,"HYUNDAI","WHITE","ELF",2020,"S2020",50000,"2021-05-01",5000,1,3000,150,"case","TAAZ",null,null,null,null,"كود ينفذ الآتي ","المطلوب : "]
[null,"ISUZU","GOLDEN","JIMNY",2009,"JALC1BFK2V7100406",15000,"2021-06-02",5000,1,3000,null,"Tain","SANA'A",null,"   ترحيل البيانات إلى ورقة ALL DATA",null,null,null,-1]
[null,null,null,null,null,null,null,null,null,null,null,null,null,null,null,"\nبيانات العمود F  بحسب  نوع  السيارة في العمود B إلى الورقة  car'scod  الى ما يقابله في car'scod في الأعمدة A:B مثلاً هنا نوع السيارة  HYUNDAI   وبيانات العمود F الخاص ببيانات ( CHASSIS NO.)  هي  S2020 عند تنفيذ الكود المطلوب تنتقل إلى الورقة car'scod أخر بيانات الموجودة لعمود HYUNDAI وكذا مع السيارة ISUZU\nوهكذا كلما مع بقية السيارات المطلوب ترحيل بياناتها \n\nمع فائق التقدير والاحترام ,,,,,"]
[null,null,null,null,null,null,null,null,null,null,null,null,null,null,null,null,null,null,null,-2]

{"sheet":"ALL DATA","index":2,"n_rows":4903,"n_cols":14,"rows_kept":4903,"cut":false,"hidden":false,"merged":[[0,1,0,9]]}
[null,"ALL CARS' DATA "]
[]
[null,"CAR","COLOR","TYPE","MODEL","CHASSIS NO.","PRICE NTD","DATE","COMMISSION","QUANTITY","Transportation ","TAX","nots","to"]
[{"$f":"TEXT(H4,\"mmmm\")","v":"يونيو"},"SUZUKI","WHITE","GRAND VITARA",1993,"TD01M-002713",20000,"2021-06-24",5500,1,null,null,"case"]
["يونيو","SUZUKI","BLUE","VAN CURRY",1999,"YJ8TM-00399",17000,"2021-06-28",5500,1,null,null,"Tain"]
["يونيو","SUZUKI","BLUE","VAN CURRY",2007,"YJ8TM-004747",13000,"2021-06-26",5500,1,null,null,"Tain"]
[{"$f":"TEXT(H7,\"mmmm\")","v":"يناير"}]
["يناير"]
["يناير"]
["يناير"]
["يناير"]
["يناير"]
["يناير"]
["يناير"]
["يناير"]
["يناير"]
["يناير"]
["يناير"]
["يناير"]
["يناير"]
["يناير"]
["يناير"]
["يناير"]
["يناير"]
["يناير"]
["يناير"]
["يناير"]
["يناير"]
["يناير"]
["يناير"]
["يناير"]
["يناير"]
["يناير"]
[{"$f":"TEXT(H34,\"mmmm\")","v":"يناير"}]
["يناير"]
["يناير"]
["يناير"]
["يناير"]
["يناير"]
["يناير"]
["يناير"]
["يناير"]
["يناير"]
["يناير"]
["يناير"]
["يناير"]
["يناير"]
["يناير"]
["يناير"]
["يناير"]
["يناير"]
["يناير"]
["يناير"]
["يناير"]
["يناير"]
["يناير"]
["يناير"]
["يناير"]
["يناير"]
["يناير"]
["يناير"]
["يناير"]
["يناير"]
["يناير"]
["يناير"]
["يناير"]
["يناير"]
["يناير"]
["يناير"]
["يناير"]
["يناير"]
["يناير"]
["يناير"]
["يناير"]
["يناير"]
["يناير"]
["يناير"]
["يناير"]
["يناير"]
["يناير"]
["يناير"]
["يناير"]
["يناير"]
["يناير"]
["يناير"]
["يناير"]
["يناير"]
["يناير"]
["يناير"]
["يناير"]
["يناير"]
["يناير"]
["يناير"]
["يناير"]
["يناير"]
["يناير"]
["يناير"]
[{"$f":"TEXT(H98,\"mmmm\")","v":"يناير"}]
["يناير"]
["يناير"]
["يناير"]
["يناير"]
["يناير"]
["يناير"]
["يناير"]
["يناير"]
["يناير"]
["يناير"]
["يناير"]
["يناير"]
["يناير"]
["يناير"]
["يناير"]
["يناير"]
["يناير"]
["يناير"]
["يناير"]
["يناير"]
["يناير"]
["يناير"]
["يناير"]
["يناير"]
["يناير"]
["يناير"]
["يناير"]
["يناير"]
["يناير"]
["يناير"]
["يناير"]
["يناير"]
["يناير"]
["يناير"]
["يناير"]
["يناير"]
["يناير"]
["يناير"]
["يناير"]
["يناير"]
["يناير"]
["يناير"]
["يناير"]
["يناير"]
["يناير"]
["يناير"]
["يناير"]
["يناير"]
["يناير"]
["يناير"]
["يناير"]
["يناير"]
["يناير"]
["يناير"]
["يناير"]
["يناير"]
["يناير"]
["يناير"]
["يناير"]
["يناير"]
["يناير"]
["يناير"]
["يناير"]
[{"$f":"TEXT(H162,\"mmmm\")","v":"يناير"}]
["يناير"]
["يناير"]
["يناير"]
["يناير"]
["يناير"]
["يناير"]
["يناير"]
["يناير"]
["يناير"]
["يناير"]
["يناير"]
["يناير"]
["يناير"]
["يناير"]
["يناير"]
["يناير"]
["يناير"]
["يناير"]
["يناير"]
["يناير"]
["يناير"]
["يناير"]
["يناير"]
["يناير"]
["يناير"]
["يناير"]
["يناير"]
["يناير"]
["يناير"]
["يناير"]
["يناير"]
["يناير"]
["يناير"]
["يناير"]
["يناير"]
["يناير"]
["يناير"]
["يناير"]
["يناير"]
["يناير"]
["يناير"]
["يناير"]
["يناير"]
["يناير"]
["يناير"]
["يناير"]
["يناير"]
["يناير"]
["يناير"]
["يناير"]
["يناير"]
["يناير"]
["يناير"]
["يناير"]
["يناير"]
["يناير"]
["يناير"]
["يناير"]
["يناير"]
["يناير"]
["يناير"]
["يناير"]
["يناير"]
[{"$f":"TEXT(H226,\"mmmm\")","v":"يناير"}]
["يناير"]
["يناير"]
["يناير"]
["يناير"]
["يناير"]
["يناير"]
["يناير"]
["يناير"]
["يناير"]
["يناير"]
["يناير"]
["يناير"]
["يناير"]
["يناير"]
["يناير"]
["يناير"]
["يناير"]
["يناير"]
["يناير"]
["يناير"]
["يناير"]
["يناير"]
["يناير"]
["يناير"]
["يناير"]
["يناير"]
["يناير"]
["يناير"]
["يناير"]
["يناير"]
["يناير"]
["يناير"]
["يناير"]
["يناير"]
["يناير"]
["يناير"]
["يناير"]
["يناير"]
["يناير"]
["يناير"]
["يناير"]
["يناير"]
["يناير"]
["يناير"]
["يناير"]
["يناير"]
["يناير"]
["يناير"]
["يناير"]
["يناير"]
["يناير"]
["يناير"]
["يناير"]
["يناير"]
["يناير"]
["يناير"]
["يناير"]
["يناير"]
["يناير"]
["يناير"]
["يناير"]
["يناير"]
["يناير"]
[{"$f":"TEXT(H290,\"mmmm\")","v":"يناير"}]
["يناير"]
["يناير"]
["يناير"]
["يناير"]
["يناير"]
["يناير"]
["يناير"]
["يناير"]
["يناير"]
["يناير"]
["يناير"]
["يناير"]
["يناير"]
["يناير"]
["يناير"]
["يناير"]
["يناير"]
["يناير"]
["يناير"]
["يناير"]
["يناير"]
["يناير"]
["يناير"]
["يناير"]
["يناير"]
["يناير"]
["يناير"]
["يناير"]
["يناير"]
["يناير"]
["يناير"]
["يناير"]
["يناير"]
["يناير"]
["يناير"]
["يناير"]
["يناير"]
["يناير"]
["يناير"]
["يناير"]
["يناير"]
["يناير"]
["يناير"]
["يناير"]
["يناير"]
["يناير"]
["يناير"]
["يناير"]
["يناير"]
["يناير"]
["يناير"]
["يناير"]
["يناير"]
["يناير"]
["يناير"]
["يناير"]
["يناير"]
["يناير"]
["يناير"]
["يناير"]
["يناير"]
["يناير"]
["يناير"]
[{"$f":"TEXT(H354,\"mmmm\")","v":"يناير"}]
["يناير"]
["يناير"]
["يناير"]
["يناير"]
["يناير"]
["يناير"]
["يناير"]
["يناير"]
["يناير"]
["يناير"]
["يناير"]
["يناير"]
["يناير"]
["يناير"]
["يناير"]
["يناير"]
["يناير"]
["يناير"]
["يناير"]
["يناير"]
["يناير"]
["يناير"]
["يناير"]
["يناير"]
["يناير"]
["يناير"]
["يناير"]
["يناير"]
["يناير"]
["يناير"]
["يناير"]
["يناير"]
["يناير"]
["يناير"]
["يناير"]
["يناير"]
["يناير"]
["يناير"]
["يناير"]
["يناير"]
["يناير"]
["يناير"]
["يناير"]
["يناير"]
["يناير"]
["يناير"]
["يناير"]
["يناير"]
["يناير"]
["يناير"]
["يناير"]
["يناير"]
["يناير"]
["يناير"]
["يناير"]
["يناير"]
["يناير"]
["يناير"]
["يناير"]
["يناير"]
["يناير"]
["يناير"]
["يناير"]
[{"$f":"TEXT(H418,\"mmmm\")","v":"يناير"}]
["يناير"]
["يناير"]
["يناير"]
["يناير"]
["يناير"]
["يناير"]
["يناير"]
["يناير"]
["يناير"]
["يناير"]
["يناير"]
["يناير"]
["يناير"]
["يناير"]
["يناير"]
["يناير"]
["يناير"]
["يناير"]
["يناير"]
["يناير"]
["يناير"]
["يناير"]
["يناير"]
["يناير"]
["يناير"]
["يناير"]
["يناير"]
["يناير"]
["يناير"]
["يناير"]
["يناير"]
["يناير"]
["يناير"]
["يناير"]
["يناير"]
["يناير"]
["يناير"]
["يناير"]
["يناير"]
["يناير"]
["يناير"]
["يناير"]
["يناير"]
["يناير"]
["يناير"]
["يناير"]
["يناير"]
["يناير"]
["يناير"]
["يناير"]
["يناير"]
["يناير"]
["يناير"]
["يناير"]
["يناير"]
["يناير"]
["يناير"]
["يناير"]
["يناير"]
["يناير"]
["يناير"]
["يناير"]
["يناير"]
[{"$f":"TEXT(H482,\"mmmm\")","v":"يناير"}]
["يناير"]
["يناير"]
["يناير"]
["يناير"]
["يناير"]
["يناير"]
["يناير"]
["يناير"]
["يناير"]
["يناير"]
["يناير"]
["يناير"]
["يناير"]
["يناير"]
["يناير"]
["يناير"]
["يناير"]
["يناير"]
["يناير"]
["يناير"]
["يناير"]
["يناير"]
["يناير"]
["يناير"]
["يناير"]
["يناير"]
["يناير"]
["يناير"]
["يناير"]
["يناير"]
["يناير"]
["يناير"]
["يناير"]
["يناير"]
["يناير"]
["يناير"]
["يناير"]
["يناير"]
["يناير"]
["يناير"]
["يناير"]
["يناير"]
["يناير"]
["يناير"]
["يناير"]
["يناير"]
["يناير"]
["يناير"]
["يناير"]
["يناير"]
["يناير"]
["يناير"]
["يناير"]
["يناير"]
["يناير"]
["يناير"]
["يناير"]
["يناير"]
["يناير"]
["يناير"]
["يناير"]
["يناير"]
["يناير"]
[{"$f":"TEXT(H546,\"mmmm\")","v":"يناير"}]
["يناير"]
["يناير"]
["يناير"]
["يناير"]
["يناير"]
["يناير"]
["يناير"]
["يناير"]
["يناير"]
["يناير"]
["يناير"]
["يناير"]
["يناير"]
["يناير"]
["يناير"]
["يناير"]
["يناير"]
["يناير"]
["يناير"]
["يناير"]
["يناير"]
["يناير"]
["يناير"]
["يناير"]
["يناير"]
["يناير"]
["يناير"]
["يناير"]
["يناير"]
["يناير"]
["يناير"]
["يناير"]
["يناير"]
["يناير"]
["يناير"]
["يناير"]
["يناير"]
["يناير"]
["يناير"]
["يناير"]
["يناير"]
["يناير"]
["يناير"]
["يناير"]
["يناير"]
["يناير"]
["يناير"]
["يناير"]
["يناير"]
["يناير"]
["يناير"]
["يناير"]
["يناير"]
["يناير"]
["يناير"]
["يناير"]
["يناير"]
["يناير"]
["يناير"]
["يناير"]
["يناير"]
["يناير"]
["يناير"]
[{"$f":"TEXT(H610,\"mmmm\")","v":"يناير"}]
["يناير"]
["يناير"]
["يناير"]
["يناير"]
["يناير"]
["يناير"]
["يناير"]
["يناير"]
["يناير"]
["يناير"]
["يناير"]
["يناير"]
["يناير"]
["يناير"]
["يناير"]
["يناير"]
["يناير"]
["يناير"]
["يناير"]
["يناير"]
["يناير"]
["يناير"]
["يناير"]
["يناير"]
["يناير"]
["يناير"]
["يناير"]
["يناير"]
["يناير"]
["يناير"]
["يناير"]
["يناير"]
["يناير"]
["يناير"]
["يناير"]
["يناير"]
["يناير"]
["يناير"]
["يناير"]
["يناير"]
["يناير"]
["يناير"]
["يناير"]
["يناير"]
["يناير"]
["يناير"]
["يناير"]
["يناير"]
["يناير"]
["يناير"]
["يناير"]
["يناير"]
["يناير"]
["يناير"]
["يناير"]
["يناير"]
["يناير"]
["يناير"]
["يناير"]
["يناير"]
["يناير"]
["يناير"]
["يناير"]
[{"$f":"TEXT(H674,\"mmmm\")","v":"يناير"}]
["يناير"]
["يناير"]
["يناير"]
["يناير"]
["يناير"]
["يناير"]
["يناير"]
["يناير"]
["يناير"]
["يناير"]
["يناير"]
["يناير"]
["يناير"]
["يناير"]
["يناير"]
["يناير"]
["يناير"]
["يناير"]
["يناير"]
["يناير"]
["يناير"]
["يناير"]
["يناير"]
["يناير"]
["يناير"]
["يناير"]
["يناير"]
["يناير"]
["يناير"]
["يناير"]
["يناير"]
["يناير"]
["يناير"]
["يناير"]
["يناير"]
["يناير"]
["يناير"]
["يناير"]
["يناير"]
["يناير"]
["يناير"]
["يناير"]
["يناير"]
["يناير"]
["يناير"]
["يناير"]
["يناير"]
["يناير"]
["يناير"]
["يناير"]
["يناير"]
["يناير"]
["يناير"]
["يناير"]
["يناير"]
["يناير"]
["يناير"]
["يناير"]
["يناير"]
["يناير"]
["يناير"]
["يناير"]
["يناير"]
[{"$f":"TEXT(H738,\"mmmm\")","v":"يناير"}]
["يناير"]
["يناير"]
["يناير"]
["يناير"]
["يناير"]
["يناير"]
["يناير"]
["يناير"]
["يناير"]
["يناير"]
["يناير"]
["يناير"]
["يناير"]
["يناير"]
["يناير"]
["يناير"]
["يناير"]
["يناير"]
["يناير"]
["يناير"]
["يناير"]
["يناير"]
["يناير"]
["يناير"]
["يناير"]
["يناير"]
["يناير"]
["يناير"]
["يناير"]
["يناير"]
["يناير"]
["يناير"]
["يناير"]
["يناير"]
["يناير"]
["يناير"]
["يناير"]
["يناير"]
["يناير"]
["يناير"]
["يناير"]
["يناير"]
["يناير"]
["يناير"]
["يناير"]
["يناير"]
["يناير"]
["يناير"]
["يناير"]
["يناير"]
["يناير"]
["يناير"]
["يناير"]
["يناير"]
["يناير"]
["يناير"]
["يناير"]
["يناير"]
["يناير"]
["يناير"]
["يناير"]
["يناير"]
["يناير"]
[{"$f":"TEXT(H802,\"mmmm\")","v":"يناير"}]
["يناير"]
["يناير"]
["يناير"]
["يناير"]
["يناير"]
["يناير"]
["يناير"]
["يناير"]
["يناير"]
["يناير"]
["يناير"]
["يناير"]
["يناير"]
["يناير"]
["يناير"]
["يناير"]
["يناير"]
["يناير"]
["يناير"]
["يناير"]
["يناير"]
["يناير"]
["يناير"]
["يناير"]
["يناير"]
["يناير"]
["يناير"]
["يناير"]
["يناير"]
["يناير"]
["يناير"]
["يناير"]
["يناير"]
["يناير"]
["يناير"]
["يناير"]
["يناير"]
["يناير"]
["يناير"]
["يناير"]
["يناير"]
["يناير"]
["يناير"]
["يناير"]
["يناير"]
["يناير"]
["يناير"]
["يناير"]
["يناير"]
["يناير"]
["يناير"]
["يناير"]
["يناير"]
["يناير"]
["يناير"]
["يناير"]
["يناير"]
["يناير"]
["يناير"]
["يناير"]
["يناير"]
["يناير"]
["يناير"]
[{"$f":"TEXT(H866,\"mmmm\")","v":"يناير"}]
["يناير"]
["يناير"]
["يناير"]
["يناير"]
["يناير"]
["يناير"]
["يناير"]
["يناير"]
["يناير"]
["يناير"]
["يناير"]
["يناير"]
["يناير"]
["يناير"]
["يناير"]
["يناير"]
["يناير"]
["يناير"]
["يناير"]
["يناير"]
["يناير"]
["يناير"]
["يناير"]
["يناير"]
["يناير"]
["يناير"]
["يناير"]
["يناير"]
["يناير"]
["يناير"]
["يناير"]
["يناير"]
["يناير"]
["يناير"]
["يناير"]
["يناير"]
["يناير"]
["يناير"]
["يناير"]
["يناير"]
["يناير"]
["يناير"]
["يناير"]
["يناير"]
["يناير"]
["يناير"]
["يناير"]
["يناير"]
["يناير"]
["يناير"]
["يناير"]
["يناير"]
["يناير"]
["يناير"]
["يناير"]
["يناير"]
["يناير"]
["يناير"]
["يناير"]
["يناير"]
["يناير"]
["يناير"]
["يناير"]
[{"$f":"TEXT(H930,\"mmmm\")","v":"يناير"}]
["يناير"]
["يناير"]
["يناير"]
["يناير"]
["يناير"]
["يناير"]
["يناير"]
["يناير"]
["يناير"]
["يناير"]
["يناير"]
["يناير"]
["يناير"]
["يناير"]
["يناير"]
["يناير"]
["يناير"]
["يناير"]
["يناير"]
["يناير"]
["يناير"]
["يناير"]
["يناير"]
["يناير"]
["يناير"]
["يناير"]
["يناير"]
["يناير"]
["يناير"]
["يناير"]
["يناير"]
["يناير"]
["يناير"]
["يناير"]
["يناير"]
["يناير"]
["يناير"]
["يناير"]
["يناير"]
["يناير"]
["يناير"]
["يناير"]
["يناير"]
["يناير"]
["يناير"]
["يناير"]
["يناير"]
["يناير"]
["يناير"]
["يناير"]
["يناير"]
["يناير"]
["يناير"]
["يناير"]
["يناير"]
["يناير"]
["يناير"]
["يناير"]
["يناير"]
["يناير"]
["يناير"]
["يناير"]
["يناير"]
[{"$f":"TEXT(H994,\"mmmm\")","v":"يناير"}]
["يناير"]
["يناير"]
["يناير"]
["يناير"]
["يناير"]
["يناير"]
["يناير"]
["يناير"]
["يناير"]
["يناير"]
["يناير"]
["يناير"]
["يناير"]
["يناير"]
["يناير"]
["يناير"]
["يناير"]
["يناير"]
["يناير"]
["يناير"]
["يناير"]
["يناير"]
["يناير"]
["يناير"]
["يناير"]
["يناير"]
["يناير"]
["يناير"]
["يناير"]
["يناير"]
["يناير"]
["يناير"]
["يناير"]
["يناير"]
["يناير"]
["يناير"]
["يناير"]
["يناير"]
["يناير"]
["يناير"]
["يناير"]
["يناير"]
["يناير"]
["يناير"]
["يناير"]
["يناير"]
["يناير"]
["يناير"]
["يناير"]
["يناير"]
["يناير"]
["يناير"]
["يناير"]
["يناير"]
["يناير"]
["يناير"]
["يناير"]
["يناير"]
["يناير"]
["يناير"]
["يناير"]
["يناير"]
["يناير"]
[{"$f":"TEXT(H1058,\"mmmm\")","v":"يناير"}]
["يناير"]
["يناير"]
["يناير"]
["يناير"]
["يناير"]
["يناير"]
["يناير"]
["يناير"]
["يناير"]
["يناير"]
["يناير"]
["يناير"]
["يناير"]
["يناير"]
["يناير"]
["يناير"]
["يناير"]
["يناير"]
["يناير"]
["يناير"]
["يناير"]
["يناير"]
["يناير"]
["يناير"]
["يناير"]
["يناير"]
["يناير"]
["يناير"]
["يناير"]
["يناير"]
["يناير"]
["يناير"]
["يناير"]
["يناير"]
["يناير"]
["يناير"]
["يناير"]
["يناير"]
["يناير"]
["يناير"]
["يناير"]
["يناير"]
["يناير"]
["يناير"]
["يناير"]
["يناير"]
["يناير"]
["يناير"]
["يناير"]
["يناير"]
["يناير"]
["يناير"]
["يناير"]
["يناير"]
["يناير"]
["يناير"]
["يناير"]
["يناير"]
["يناير"]
["يناير"]
["يناير"]
["يناير"]
["يناير"]
[{"$f":"TEXT(H1122,\"mmmm\")","v":"يناير"}]
["يناير"]
["يناير"]
["يناير"]
["يناير"]
["يناير"]
["يناير"]
["يناير"]
["يناير"]
["يناير"]
["يناير"]
["يناير"]
["يناير"]
["يناير"]
["يناير"]
["يناير"]
["يناير"]
["يناير"]
["يناير"]
["يناير"]
["يناير"]
["يناير"]
["يناير"]
["يناير"]
["يناير"]
["يناير"]
["يناير"]
["يناير"]
["يناير"]
["يناير"]
["يناير"]
["يناير"]
["يناير"]
["يناير"]
["يناير"]
["يناير"]
["يناير"]
["يناير"]
["يناير"]
["يناير"]
["يناير"]
["يناير"]
["يناير"]
["يناير"]
["يناير"]
["يناير"]
["يناير"]
["يناير"]
["يناير"]
["يناير"]
["يناير"]
["يناير"]
["يناير"]
["يناير"]
["يناير"]
["يناير"]
["يناير"]
["يناير"]
["يناير"]
["يناير"]
["يناير"]
["يناير"]
["يناير"]
["يناير"]
[{"$f":"TEXT(H1186,\"mmmm\")","v":"يناير"}]
["يناير"]
["يناير"]
["يناير"]
["يناير"]
["يناير"]
["يناير"]
["يناير"]
["يناير"]
["يناير"]
["يناير"]
["يناير"]
["يناير"]
["يناير"]
["يناير"]
["يناير"]
["يناير"]
["يناير"]
["يناير"]
["يناير"]
["يناير"]
["يناير"]
["يناير"]
["يناير"]
["يناير"]
["يناير"]
["يناير"]
["يناير"]
["يناير"]
["يناير"]
["يناير"]
["يناير"]
["يناير"]
["يناير"]
["يناير"]
["يناير"]
["يناير"]
["يناير"]
["يناير"]
["يناير"]
["يناير"]
["يناير"]
["يناير"]
["يناير"]
["يناير"]
["يناير"]
["يناير"]
["يناير"]
["يناير"]
["يناير"]
["يناير"]
["يناير"]
["يناير"]
["يناير"]
["يناير"]
["يناير"]
["يناير"]
["يناير"]
["يناير"]
["يناير"]
["يناير"]
["يناير"]
["يناير"]
["يناير"]
[{"$f":"TEXT(H1250,\"mmmm\")","v":"يناير"}]
["يناير"]
["يناير"]
["يناير"]
["يناير"]
["يناير"]
["يناير"]
["يناير"]
["يناير"]
["يناير"]
["يناير"]
["يناير"]
["يناير"]
["يناير"]
["يناير"]
["يناير"]
["يناير"]
["يناير"]
["يناير"]
["يناير"]
["يناير"]
["يناير"]
["يناير"]
["يناير"]
["يناير"]
["يناير"]
["يناير"]
["يناير"]
["يناير"]
["يناير"]
["يناير"]
["يناير"]
["يناير"]
["يناير"]
["يناير"]
["يناير"]
["يناير"]
["يناير"]
["يناير"]
["يناير"]
["يناير"]
["يناير"]
["يناير"]
["يناير"]
["يناير"]
["يناير"]
["يناير"]
["يناير"]
["يناير"]
["يناير"]
["يناير"]
["يناير"]
["يناير"]
["يناير"]
["يناير"]
["يناير"]
["يناير"]
["يناير"]
["يناير"]
["يناير"]
["يناير"]
["يناير"]
["يناير"]
["يناير"]
[{"$f":"TEXT(H1314,\"mmmm\")","v":"يناير"}]
["يناير"]
["يناير"]
["يناير"]
["يناير"]
["يناير"]
["يناير"]
["يناير"]
["يناير"]
["يناير"]
["يناير"]
["يناير"]
["يناير"]
["يناير"]
["يناير"]
["يناير"]
["يناير"]
["يناير"]
["يناير"]
["يناير"]
["يناير"]
["يناير"]
["يناير"]
["يناير"]
["يناير"]
["يناير"]
["يناير"]
["يناير"]
["يناير"]
["يناير"]
["يناير"]
["يناير"]
["يناير"]
["يناير"]
["يناير"]
["يناير"]
["يناير"]
["يناير"]
["يناير"]
["يناير"]
["يناير"]
["يناير"]
["يناير"]
["يناير"]
["يناير"]
["يناير"]
["يناير"]
["يناير"]
["يناير"]
["يناير"]
["يناير"]
["يناير"]
["يناير"]
["يناير"]
["يناير"]
["يناير"]
["يناير"]
["يناير"]
["يناير"]
["يناير"]
["يناير"]
["يناير"]
["يناير"]
["يناير"]
[{"$f":"TEXT(H1378,\"mmmm\")","v":"يناير"}]
["يناير"]
["يناير"]
["يناير"]
["يناير"]
["يناير"]
["يناير"]
["يناير"]
["يناير"]
["يناير"]
["يناير"]
["يناير"]
["يناير"]
["يناير"]
["يناير"]
["يناير"]
["يناير"]
["يناير"]
["يناير"]
["يناير"]
["يناير"]
["يناير"]
["يناير"]
["يناير"]
["يناير"]
["يناير"]
["يناير"]
["يناير"]
["يناير"]
["يناير"]
["يناير"]
["يناير"]
["يناير"]
["يناير"]
["يناير"]
["يناير"]
["يناير"]
["يناير"]
["يناير"]
["يناير"]
["يناير"]
["يناير"]
["يناير"]
["يناير"]
["يناير"]
["يناير"]
["يناير"]
["يناير"]
["يناير"]
["يناير"]
["يناير"]
["يناير"]
["يناير"]
["يناير"]
["يناير"]
["يناير"]
["يناير"]
["يناير"]
["يناير"]
["يناير"]
["يناير"]
["يناير"]
["يناير"]
["يناير"]
[{"$f":"TEXT(H1442,\"mmmm\")","v":"يناير"}]
["يناير"]
["يناير"]
["يناير"]
["يناير"]
["يناير"]
["يناير"]
["يناير"]
["يناير"]
["يناير"]
["يناير"]
["يناير"]
["يناير"]
["يناير"]
["يناير"]
["يناير"]
["يناير"]
["يناير"]
["يناير"]
["يناير"]
["يناير"]
["يناير"]
["يناير"]
["يناير"]
["يناير"]
["يناير"]
["يناير"]
["يناير"]
["يناير"]
["يناير"]
["يناير"]
["يناير"]
["يناير"]
["يناير"]
["يناير"]
["يناير"]
["يناير"]
["يناير"]
["يناير"]
["يناير"]
["يناير"]
["يناير"]
["يناير"]
["يناير"]
["يناير"]
["يناير"]
["يناير"]
["يناير"]
["يناير"]
["يناير"]
["يناير"]
["يناير"]
["يناير"]
["يناير"]
["يناير"]
["يناير"]
["يناير"]
["يناير"]
["يناير"]
["يناير"]
["يناير"]
["يناير"]
["يناير"]
["يناير"]
[{"$f":"TEXT(H1506,\"mmmm\")","v":"يناير"}]
["يناير"]
["يناير"]
["يناير"]
["يناير"]
["يناير"]
["يناير"]
["يناير"]
["يناير"]
["يناير"]
["يناير"]
["يناير"]
["يناير"]
["يناير"]
["يناير"]
["يناير"]
["يناير"]
["يناير"]
["يناير"]
["يناير"]
["يناير"]
["يناير"]
["يناير"]
["يناير"]
["يناير"]
["يناير"]
["يناير"]
["يناير"]
["يناير"]
["يناير"]
["يناير"]
["يناير"]
["يناير"]
["يناير"]
["يناير"]
["يناير"]
["يناير"]
["يناير"]
["يناير"]
["يناير"]
["يناير"]
["يناير"]
["يناير"]
["يناير"]
["يناير"]
["يناير"]
["يناير"]
["يناير"]
["يناير"]
["يناير"]
["يناير"]
["يناير"]
["يناير"]
["يناير"]
["يناير"]
["يناير"]
["يناير"]
["يناير"]
["يناير"]
["يناير"]
["يناير"]
["يناير"]
["يناير"]
["يناير"]
[{"$f":"TEXT(H1570,\"mmmm\")","v":"يناير"}]
["يناير"]
["يناير"]
["يناير"]
["يناير"]
["يناير"]
["يناير"]
["يناير"]
["يناير"]
["يناير"]
["يناير"]
["يناير"]
["يناير"]
["يناير"]
["يناير"]
["يناير"]
["يناير"]
["يناير"]
["يناير"]
["يناير"]
["يناير"]
["يناير"]
["يناير"]
["يناير"]
["يناير"]
["يناير"]
["يناير"]
["يناير"]
["يناير"]
["يناير"]
["يناير"]
["يناير"]
["يناير"]
["يناير"]
["يناير"]
["يناير"]
["يناير"]
["يناير"]
["يناير"]
["يناير"]
["يناير"]
["يناير"]
["يناير"]
["يناير"]
["يناير"]
["يناير"]
["يناير"]
["يناير"]
["يناير"]
["يناير"]
["يناير"]
["يناير"]
["يناير"]
["يناير"]
["يناير"]
["يناير"]
["يناير"]
["يناير"]
["يناير"]
["يناير"]
["يناير"]
["يناير"]
["يناير"]
["يناير"]
[{"$f":"TEXT(H1634,\"mmmm\")","v":"يناير"}]
["يناير"]
["يناير"]
["يناير"]
["يناير"]
["يناير"]
["يناير"]
["يناير"]
["يناير"]
["يناير"]
["يناير"]
["يناير"]
["يناير"]
["يناير"]
["يناير"]
["يناير"]
["يناير"]
["يناير"]
["يناير"]
["يناير"]
["يناير"]
["يناير"]
["يناير"]
["يناير"]
["يناير"]
["يناير"]
["يناير"]
["يناير"]
["يناير"]
["يناير"]
["يناير"]
["يناير"]
["يناير"]
["يناير"]
["يناير"]
["يناير"]
["يناير"]
["يناير"]
["يناير"]
["يناير"]
["يناير"]
["يناير"]
["يناير"]
["يناير"]
["يناير"]
["يناير"]
["يناير"]
["يناير"]
["يناير"]
["يناير"]
["يناير"]
["يناير"]
["يناير"]
["يناير"]
["يناير"]
["يناير"]
["يناير"]
["يناير"]
["يناير"]
["يناير"]
["يناير"]
["يناير"]
["يناير"]
["يناير"]
[{"$f":"TEXT(H1698,\"mmmm\")","v":"يناير"}]
["يناير"]
["يناير"]
["يناير"]
["يناير"]
["يناير"]
["يناير"]
["يناير"]
["يناير"]
["يناير"]
["يناير"]
["يناير"]
["يناير"]
["يناير"]
["يناير"]
["يناير"]
["يناير"]
["يناير"]
["يناير"]
["يناير"]
["يناير"]
["يناير"]
["يناير"]
["يناير"]
["يناير"]
["يناير"]
["يناير"]
["يناير"]
["يناير"]
["يناير"]
["يناير"]
["يناير"]
["يناير"]
["يناير"]
["يناير"]
["يناير"]
["يناير"]
["يناير"]
["يناير"]
["يناير"]
["يناير"]
["يناير"]
["يناير"]
["يناير"]
["يناير"]
["يناير"]
["يناير"]
["يناير"]
["يناير"]
["يناير"]
["يناير"]
["يناير"]
["يناير"]
["يناير"]
["يناير"]
["يناير"]
["يناير"]
["يناير"]
["يناير"]
["يناير"]
["يناير"]
["يناير"]
["يناير"]
["يناير"]
[{"$f":"TEXT(H1762,\"mmmm\")","v":"يناير"}]
["يناير"]
["يناير"]
["يناير"]
["يناير"]
["يناير"]
["يناير"]
["يناير"]
["يناير"]
["يناير"]
["يناير"]
["يناير"]
["يناير"]
["يناير"]
["يناير"]
["يناير"]
["يناير"]
["يناير"]
["يناير"]
["يناير"]
["يناير"]
["يناير"]
["يناير"]
["يناير"]
["يناير"]
["يناير"]
["يناير"]
["يناير"]
["يناير"]
["يناير"]
["يناير"]
["يناير"]
["يناير"]
["يناير"]
["يناير"]
["يناير"]
["يناير"]
["يناير"]
["يناير"]
["يناير"]
["يناير"]
["يناير"]
["يناير"]
["يناير"]
["يناير"]
["يناير"]
["يناير"]
["يناير"]
["يناير"]
["يناير"]
["يناير"]
["يناير"]
["يناير"]
["يناير"]
["يناير"]
["يناير"]
["يناير"]
["يناير"]
["يناير"]
["يناير"]
["يناير"]
["يناير"]
["يناير"]
["يناير"]
[{"$f":"TEXT(H1826,\"mmmm\")","v":"يناير"}]
["يناير"]
["يناير"]
["يناير"]
["يناير"]
["يناير"]
["يناير"]
["يناير"]
["يناير"]
["يناير"]
["يناير"]
["يناير"]
["يناير"]
["يناير"]
["يناير"]
["يناير"]
["يناير"]
["يناير"]
["يناير"]
["يناير"]
["يناير"]
["يناير"]
["يناير"]
["يناير"]
["يناير"]
["يناير"]
["يناير"]
["يناير"]
["يناير"]
["يناير"]
["يناير"]
["يناير"]
["يناير"]
["يناير"]
["يناير"]
["يناير"]
["يناير"]
["يناير"]
["يناير"]
["يناير"]
["يناير"]
["يناير"]
["يناير"]
["يناير"]
["يناير"]
["يناير"]
["يناير"]
["يناير"]
["يناير"]
["يناير"]
["يناير"]
["يناير"]
["يناير"]
["يناير"]
["يناير"]
["يناير"]
["يناير"]
["يناير"]
["يناير"]
["يناير"]
["يناير"]
["يناير"]
["يناير"]
["يناير"]
[{"$f":"TEXT(H1890,\"mmmm\")","v":"يناير"}]
["يناير"]
["يناير"]
["يناير"]
["يناير"]
["يناير"]
["يناير"]
["يناير"]
["يناير"]
["يناير"]
["يناير"]
["يناير"]
["يناير"]
["يناير"]
["يناير"]
["يناير"]
["يناير"]
["يناير"]
["يناير"]
["يناير"]
["يناير"]
["يناير"]
["يناير"]
["يناير"]
["يناير"]
["يناير"]
["يناير"]
["يناير"]
["يناير"]
["يناير"]
["يناير"]
["يناير"]
["يناير"]
["يناير"]
["يناير"]
["يناير"]
["يناير"]
["يناير"]
["يناير"]
["يناير"]
["يناير"]
["يناير"]
["يناير"]
["يناير"]
["يناير"]
["يناير"]
["يناير"]
["يناير"]
["يناير"]
["يناير"]
["يناير"]
["يناير"]
["يناير"]
["يناير"]
["يناير"]
["يناير"]
["يناير"]
["يناير"]
["يناير"]
["يناير"]
["يناير"]
["يناير"]
["يناير"]
["يناير"]
[{"$f":"TEXT(H1954,\"mmmm\")","v":"يناير"}]
["يناير"]
["يناير"]
["يناير"]
["يناير"]
["يناير"]
["يناير"]
["يناير"]
["يناير"]
["يناير"]
["يناير"]
["يناير"]
["يناير"]
["يناير"]
["يناير"]
["يناير"]
["يناير"]
["يناير"]
["يناير"]
["يناير"]
["يناير"]
["يناير"]
["يناير"]
["يناير"]
["يناير"]
["يناير"]
["يناير"]
["يناير"]
["يناير"]
["يناير"]
["يناير"]
["يناير"]
["يناير"]
["يناير"]
["يناير"]
["يناير"]
["يناير"]
["يناير"]
["يناير"]
["يناير"]
["يناير"]
["يناير"]
["يناير"]
["يناير"]
["يناير"]
["يناير"]
["يناير"]
["يناير"]
["يناير"]
["يناير"]
["يناير"]
["يناير"]
["يناير"]
["يناير"]
["يناير"]
["يناير"]
["يناير"]
["يناير"]
["يناير"]
["يناير"]
["يناير"]
["يناير"]
["يناير"]
["يناير"]
[{"$f":"TEXT(H2018,\"mmmm\")","v":"يناير"}]
["يناير"]
["يناير"]
["يناير"]
["يناير"]
["يناير"]
["يناير"]
["يناير"]
["يناير"]
["يناير"]
["يناير"]
["يناير"]
["يناير"]
["يناير"]
["يناير"]
["يناير"]
["يناير"]
["يناير"]
["يناير"]
["يناير"]
["يناير"]
["يناير"]
["يناير"]
["يناير"]
["يناير"]
["يناير"]
["يناير"]
["يناير"]
["يناير"]
["يناير"]
["يناير"]
["يناير"]
["يناير"]
["يناير"]
["يناير"]
["يناير"]
["يناير"]
["يناير"]
["يناير"]
["يناير"]
["يناير"]
["يناير"]
["يناير"]
["يناير"]
["يناير"]
["يناير"]
["يناير"]
["يناير"]
["يناير"]
["يناير"]
["يناير"]
["يناير"]
["يناير"]
["يناير"]
["يناير"]
["يناير"]
["يناير"]
["يناير"]
["يناير"]
["يناير"]
["يناير"]
["يناير"]
["يناير"]
["يناير"]
[{"$f":"TEXT(H2082,\"mmmm\")","v":"يناير"}]
["يناير"]
["يناير"]
["يناير"]
["يناير"]
["يناير"]
["يناير"]
["يناير"]
["يناير"]
["يناير"]
["يناير"]
["يناير"]
["يناير"]
["يناير"]
["يناير"]
["يناير"]
["يناير"]
["يناير"]
["يناير"]
["يناير"]
["يناير"]
["يناير"]
["يناير"]
["يناير"]
["يناير"]
["يناير"]
["يناير"]
["يناير"]
["يناير"]
["يناير"]
["يناير"]
["يناير"]
["يناير"]
["يناير"]
["يناير"]
["يناير"]
["يناير"]
["يناير"]
["يناير"]
["يناير"]
["يناير"]
["يناير"]
["يناير"]
["يناير"]
["يناير"]
["يناير"]
["يناير"]
["يناير"]
["يناير"]
["يناير"]
["يناير"]
["يناير"]
["يناير"]
["يناير"]
["يناير"]
["يناير"]
["يناير"]
["يناير"]
["يناير"]
["يناير"]
["يناير"]
["يناير"]
["يناير"]
["يناير"]
[{"$f":"TEXT(H2146,\"mmmm\")","v":"يناير"}]
["يناير"]
["يناير"]
["يناير"]
["يناير"]
["يناير"]
["يناير"]
["يناير"]
["يناير"]
["يناير"]
["يناير"]
["يناير"]
["يناير"]
["يناير"]
["يناير"]
["يناير"]
["يناير"]
["يناير"]
["يناير"]
["يناير"]
["يناير"]
["يناير"]
["يناير"]
["يناير"]
["يناير"]
["يناير"]
["يناير"]
["يناير"]
["يناير"]
["يناير"]
["يناير"]
["يناير"]
["يناير"]
["يناير"]
["يناير"]
["يناير"]
["يناير"]
["يناير"]
["يناير"]
["يناير"]
["يناير"]
["يناير"]
["يناير"]
["يناير"]
["يناير"]
["يناير"]
["يناير"]
["يناير"]
["يناير"]
["يناير"]
["يناير"]
["يناير"]
["يناير"]
["يناير"]
["يناير"]
["يناير"]
["يناير"]
["يناير"]
["يناير"]
["يناير"]
["يناير"]
["يناير"]
["يناير"]
["يناير"]
[{"$f":"TEXT(H2210,\"mmmm\")","v":"يناير"}]
["يناير"]
["يناير"]
["يناير"]
["يناير"]
["يناير"]
["يناير"]
["يناير"]
["يناير"]
["يناير"]
["يناير"]
["يناير"]
["يناير"]
["يناير"]
["يناير"]
["يناير"]
["يناير"]
["يناير"]
["يناير"]
["يناير"]
["يناير"]
["يناير"]
["يناير"]
["يناير"]
["يناير"]
["يناير"]
["يناير"]
["يناير"]
["يناير"]
["يناير"]
["يناير"]
["يناير"]
["يناير"]
["يناير"]
["يناير"]
["يناير"]
["يناير"]
["يناير"]
["يناير"]
["يناير"]
["يناير"]
["يناير"]
["يناير"]
["يناير"]
["يناير"]
["يناير"]
["يناير"]
["يناير"]
["يناير"]
["يناير"]
["يناير"]
["يناير"]
["يناير"]
["يناير"]
["يناير"]
["يناير"]
["يناير"]
["يناير"]
["يناير"]
["يناير"]
["يناير"]
["يناير"]
["يناير"]
["يناير"]
[{"$f":"TEXT(H2274,\"mmmm\")","v":"يناير"}]
["يناير"]
["يناير"]
["يناير"]
["يناير"]
["يناير"]
["يناير"]
["يناير"]
["يناير"]
["يناير"]
["يناير"]
["يناير"]
["يناير"]
["يناير"]
["يناير"]
["يناير"]
["يناير"]
["يناير"]
["يناير"]
["يناير"]
["يناير"]
["يناير"]
["يناير"]
["يناير"]
["يناير"]
["يناير"]
["يناير"]
["يناير"]
["يناير"]
["يناير"]
["يناير"]
["يناير"]
["يناير"]
["يناير"]
["يناير"]
["يناير"]
["يناير"]
["يناير"]
["يناير"]
["يناير"]
["يناير"]
["يناير"]
["يناير"]
["يناير"]
["يناير"]
["يناير"]
["يناير"]
["يناير"]
["يناير"]
["يناير"]
["يناير"]
["يناير"]
["يناير"]
["يناير"]
["يناير"]
["يناير"]
["يناير"]
["يناير"]
["يناير"]
["يناير"]
["يناير"]
["يناير"]
["يناير"]
["يناير"]
[{"$f":"TEXT(H2338,\"mmmm\")","v":"يناير"}]
["يناير"]
["يناير"]
["يناير"]
["يناير"]
["يناير"]
["يناير"]
["يناير"]
["يناير"]
["يناير"]
["يناير"]
["يناير"]
["يناير"]
["يناير"]
["يناير"]
["يناير"]
["يناير"]
["يناير"]
["يناير"]
["يناير"]
["يناير"]
["يناير"]
["يناير"]
["يناير"]
["يناير"]
["يناير"]
["يناير"]
["يناير"]
["يناير"]
["يناير"]
["يناير"]
["يناير"]
["يناير"]
["يناير"]
["يناير"]
["يناير"]
["يناير"]
["يناير"]
["يناير"]
["يناير"]
["يناير"]
["يناير"]
["يناير"]
["يناير"]
["يناير"]
["يناير"]
["يناير"]
["يناير"]
["يناير"]
["يناير"]
["يناير"]
["يناير"]
["يناير"]
["يناير"]
["يناير"]
["يناير"]
["يناير"]
["يناير"]
["يناير"]
["يناير"]
["يناير"]
["يناير"]
["يناير"]
["يناير"]
[{"$f":"TEXT(H2402,\"mmmm\")","v":"يناير"}]
["يناير"]
["يناير"]
["يناير"]
["يناير"]
["يناير"]
["يناير"]
["يناير"]
["يناير"]
["يناير"]
["يناير"]
["يناير"]
["يناير"]
["يناير"]
["يناير"]
["يناير"]
["يناير"]
["يناير"]
["يناير"]
["يناير"]
["يناير"]
["يناير"]
["يناير"]
["يناير"]
["يناير"]
["يناير"]
["يناير"]
["يناير"]
["يناير"]
["يناير"]
["يناير"]
["يناير"]
["يناير"]
["يناير"]
["يناير"]
["يناير"]
["يناير"]
["يناير"]
["يناير"]
["يناير"]
["يناير"]
["يناير"]
["يناير"]
["يناير"]
["يناير"]
["يناير"]
["يناير"]
["يناير"]
["يناير"]
["يناير"]
["يناير"]
["يناير"]
["يناير"]
["يناير"]
["يناير"]
["يناير"]
["يناير"]
["يناير"]
["يناير"]
["يناير"]
["يناير"]
["يناير"]
["يناير"]
["يناير"]
[{"$f":"TEXT(H2466,\"mmmm\")","v":"يناير"}]
["يناير"]
["يناير"]
["يناير"]
["يناير"]
["يناير"]
["يناير"]
["يناير"]
["يناير"]
["يناير"]
["يناير"]
["يناير"]
["يناير"]
["يناير"]
["يناير"]
["يناير"]
["يناير"]
["يناير"]
["يناير"]
["يناير"]
["يناير"]
["يناير"]
["يناير"]
["يناير"]
["يناير"]
["يناير"]
["يناير"]
["يناير"]
["يناير"]
["يناير"]
["يناير"]
["يناير"]
["يناير"]
["يناير"]
["يناير"]
["يناير"]
["يناير"]
["يناير"]
["يناير"]
["يناير"]
["يناير"]
["يناير"]
["يناير"]
["يناير"]
["يناير"]
["يناير"]
["يناير"]
["يناير"]
["يناير"]
["يناير"]
["يناير"]
["يناير"]
["يناير"]
["يناير"]
["يناير"]
["يناير"]
["يناير"]
["يناير"]
["يناير"]
["يناير"]
["يناير"]
["يناير"]
["يناير"]
["يناير"]
[{"$f":"TEXT(H2530,\"mmmm\")","v":"يناير"}]
["يناير"]
["يناير"]
["يناير"]
["يناير"]
["يناير"]
["يناير"]
["يناير"]
["يناير"]
["يناير"]
["يناير"]
["يناير"]
["يناير"]
["يناير"]
["يناير"]
["يناير"]
["يناير"]
["يناير"]
["يناير"]
["يناير"]
["يناير"]
["يناير"]
["يناير"]
["يناير"]
["يناير"]
["يناير"]
["يناير"]
["يناير"]
["يناير"]
["يناير"]
["يناير"]
["يناير"]
["يناير"]
["يناير"]
["يناير"]
["يناير"]
["يناير"]
["يناير"]
["يناير"]
["يناير"]
["يناير"]
["يناير"]
["يناير"]
["يناير"]
["يناير"]
["يناير"]
["يناير"]
["يناير"]
["يناير"]
["يناير"]
["يناير"]
["يناير"]
["يناير"]
["يناير"]
["يناير"]
["يناير"]
["يناير"]
["يناير"]
["يناير"]
["يناير"]
["يناير"]
["يناير"]
["يناير"]
["يناير"]
[{"$f":"TEXT(H2594,\"mmmm\")","v":"يناير"}]
["يناير"]
["يناير"]
["يناير"]
["يناير"]
["يناير"]
["يناير"]
["يناير"]
["يناير"]
["يناير"]
["يناير"]
["يناير"]
["يناير"]
["يناير"]
["يناير"]
["يناير"]
["يناير"]
["يناير"]
["يناير"]
["يناير"]
["يناير"]
["يناير"]
["يناير"]
["يناير"]
["يناير"]
["يناير"]
["يناير"]
["يناير"]
["يناير"]
["يناير"]
["يناير"]
["يناير"]
["يناير"]
["يناير"]
["يناير"]
["يناير"]
["يناير"]
["يناير"]
["يناير"]
["يناير"]
["يناير"]
["يناير"]
["يناير"]
["يناير"]
["يناير"]
["يناير"]
["يناير"]
["يناير"]
["يناير"]
["يناير"]
["يناير"]
["يناير"]
["يناير"]
["يناير"]
["يناير"]
["يناير"]
["يناير"]
["يناير"]
["يناير"]
["يناير"]
["يناير"]
["يناير"]
["يناير"]
["يناير"]
[{"$f":"TEXT(H2658,\"mmmm\")","v":"يناير"}]
["يناير"]
["يناير"]
["يناير"]
["يناير"]
["يناير"]
["يناير"]
["يناير"]
["يناير"]
["يناير"]
["يناير"]
["يناير"]
["يناير"]
["يناير"]
["يناير"]
["يناير"]
["يناير"]
["يناير"]
["يناير"]
["يناير"]
["يناير"]
["يناير"]
["يناير"]
["يناير"]
["يناير"]
["يناير"]
["يناير"]
["يناير"]
["يناير"]
["يناير"]
["يناير"]
["يناير"]
["يناير"]
["يناير"]
["يناير"]
["يناير"]
["يناير"]
["يناير"]
["يناير"]
["يناير"]
["يناير"]
["يناير"]
["يناير"]
["يناير"]
["يناير"]
["يناير"]
["يناير"]
["يناير"]
["يناير"]
["يناير"]
["يناير"]
["يناير"]
["يناير"]
["يناير"]
["يناير"]
["يناير"]
["يناير"]
["يناير"]
["يناير"]
["يناير"]
["يناير"]
["يناير"]
["يناير"]
["يناير"]
[{"$f":"TEXT(H2722,\"mmmm\")","v":"يناير"}]
["يناير"]
["يناير"]
["يناير"]
["يناير"]
["يناير"]
["يناير"]
["يناير"]
["يناير"]
["يناير"]
["يناير"]
["يناير"]
["يناير"]
["يناير"]
["يناير"]
["يناير"]
["يناير"]
["يناير"]
["يناير"]
["يناير"]
["يناير"]
["يناير"]
["يناير"]
["يناير"]
["يناير"]
["يناير"]
["يناير"]
["يناير"]
["يناير"]
["يناير"]
["يناير"]
["يناير"]
["يناير"]
["يناير"]
["يناير"]
["يناير"]
["يناير"]
["يناير"]
["يناير"]
["يناير"]
["يناير"]
["يناير"]
["يناير"]
["يناير"]
["يناير"]
["يناير"]
["يناير"]
["يناير"]
["يناير"]
["يناير"]
["يناير"]
["يناير"]
["يناير"]
["يناير"]
["يناير"]
["يناير"]
["يناير"]
["يناير"]
["يناير"]
["يناير"]
["يناير"]
["يناير"]
["يناير"]
["يناير"]
[{"$f":"TEXT(H2786,\"mmmm\")","v":"يناير"}]
["يناير"]
["يناير"]
["يناير"]
["يناير"]
["يناير"]
["يناير"]
["يناير"]
["يناير"]
["يناير"]
["يناير"]
["يناير"]
["يناير"]
["يناير"]
["يناير"]
["يناير"]
["يناير"]
["يناير"]
["يناير"]
["يناير"]
["يناير"]
["يناير"]
["يناير"]
["يناير"]
["يناير"]
["يناير"]
["يناير"]
["يناير"]
["يناير"]
["يناير"]
["يناير"]
["يناير"]
["يناير"]
["يناير"]
["يناير"]
["يناير"]
["يناير"]
["يناير"]
["يناير"]
["يناير"]
["يناير"]
["يناير"]
["يناير"]
["يناير"]
["يناير"]
["يناير"]
["يناير"]
["يناير"]
["يناير"]
["يناير"]
["يناير"]
["يناير"]
["يناير"]
["يناير"]
["يناير"]
["يناير"]
["يناير"]
["يناير"]
["يناير"]
["يناير"]
["يناير"]
["يناير"]
["يناير"]
["يناير"]
[{"$f":"TEXT(H2850,\"mmmm\")","v":"يناير"}]
["يناير"]
["يناير"]
["يناير"]
["يناير"]
["يناير"]
["يناير"]
["يناير"]
["يناير"]
["يناير"]
["يناير"]
["يناير"]
["يناير"]
["يناير"]
["يناير"]
["يناير"]
["يناير"]
["يناير"]
["يناير"]
["يناير"]
["يناير"]
["يناير"]
["يناير"]
["يناير"]
["يناير"]
["يناير"]
["يناير"]
["يناير"]
["يناير"]
["يناير"]
["يناير"]
["يناير"]
["يناير"]
["يناير"]
["يناير"]
["يناير"]
["يناير"]
["يناير"]
["يناير"]
["يناير"]
["يناير"]
["يناير"]
["يناير"]
["يناير"]
["يناير"]
["يناير"]
["يناير"]
["يناير"]
["يناير"]
["يناير"]
["يناير"]
["يناير"]
["يناير"]
["يناير"]
["يناير"]
["يناير"]
["يناير"]
["يناير"]
["يناير"]
["يناير"]
["يناير"]
["يناير"]
["يناير"]
["يناير"]
[{"$f":"TEXT(H2914,\"mmmm\")","v":"يناير"}]
["يناير"]
["يناير"]
["يناير"]
["يناير"]
["يناير"]
["يناير"]
["يناير"]
["يناير"]
["يناير"]
["يناير"]
["يناير"]
["يناير"]
["يناير"]
["يناير"]
["يناير"]
["يناير"]
["يناير"]
["يناير"]
["يناير"]
["يناير"]
["يناير"]
["يناير"]
["يناير"]
["يناير"]
["يناير"]
["يناير"]
["يناير"]
["يناير"]
["يناير"]
["يناير"]
["يناير"]
["يناير"]
["يناير"]
["يناير"]
["يناير"]
["يناير"]
["يناير"]
["يناير"]
["يناير"]
["يناير"]
["يناير"]
["يناير"]
["يناير"]
["يناير"]
["يناير"]
["يناير"]
["يناير"]
["يناير"]
["يناير"]
["يناير"]
["يناير"]
["يناير"]
["يناير"]
["يناير"]
["يناير"]
["يناير"]
["يناير"]
["يناير"]
["يناير"]
["يناير"]
["يناير"]
["يناير"]
["يناير"]
[{"$f":"TEXT(H2978,\"mmmm\")","v":"يناير"}]
["يناير"]
["يناير"]
["يناير"]
["يناير"]
["يناير"]
["يناير"]
["يناير"]
["يناير"]
["يناير"]
["يناير"]
["يناير"]
["يناير"]
["يناير"]
["يناير"]
["يناير"]
["يناير"]
["يناير"]
["يناير"]
["يناير"]
["يناير"]
["يناير"]
["يناير"]
["يناير"]
["يناير"]
["يناير"]
["يناير"]
["يناير"]
["يناير"]
["يناير"]
["يناير"]
["يناير"]
["يناير"]
["يناير"]
["يناير"]
["يناير"]
["يناير"]
["يناير"]
["يناير"]
["يناير"]
["يناير"]
["يناير"]
["يناير"]
["يناير"]
["يناير"]
["يناير"]
["يناير"]
["يناير"]
["يناير"]
["يناير"]
["يناير"]
["يناير"]
["يناير"]
["يناير"]
["يناير"]
["يناير"]
["يناير"]
["يناير"]
["يناير"]
["يناير"]
["يناير"]
["يناير"]
["يناير"]
["يناير"]
[{"$f":"TEXT(H3042,\"mmmm\")","v":"يناير"}]
["يناير"]
["يناير"]
["يناير"]
["يناير"]
["يناير"]
["يناير"]
["يناير"]
["يناير"]
["يناير"]
["يناير"]
["يناير"]
["يناير"]
["يناير"]
["يناير"]
["يناير"]
["يناير"]
["يناير"]
["يناير"]
["يناير"]
["يناير"]
["يناير"]
["يناير"]
["يناير"]
["يناير"]
["يناير"]
["يناير"]
["يناير"]
["يناير"]
["يناير"]
["يناير"]
["يناير"]
["يناير"]
["يناير"]
["يناير"]
["يناير"]
["يناير"]
["يناير"]
["يناير"]
["يناير"]
["يناير"]
["يناير"]
["يناير"]
["يناير"]
["يناير"]
["يناير"]
["يناير"]
["يناير"]
["يناير"]
["يناير"]
["يناير"]
["يناير"]
["يناير"]
["يناير"]
["يناير"]
["يناير"]
["يناير"]
["يناير"]
["يناير"]
["يناير"]
["يناير"]
["يناير"]
["يناير"]
["يناير"]
[{"$f":"TEXT(H3106,\"mmmm\")","v":"يناير"}]
["يناير"]
["يناير"]
["يناير"]
["يناير"]
["يناير"]
["يناير"]
["يناير"]
["يناير"]
["يناير"]
["يناير"]
["يناير"]
["يناير"]
["يناير"]
["يناير"]
["يناير"]
["يناير"]
["يناير"]
["يناير"]
["يناير"]
["يناير"]
["يناير"]
["يناير"]
["يناير"]
["يناير"]
["يناير"]
["يناير"]
["يناير"]
["يناير"]
["يناير"]
["يناير"]
["يناير"]
["يناير"]
["يناير"]
["يناير"]
["يناير"]
["يناير"]
["يناير"]
["يناير"]
["يناير"]
["يناير"]
["يناير"]
["يناير"]
["يناير"]
["يناير"]
["يناير"]
["يناير"]
["يناير"]
["يناير"]
["يناير"]
["يناير"]
["يناير"]
["يناير"]
["يناير"]
["يناير"]
["يناير"]
["يناير"]
["يناير"]
["يناير"]
["يناير"]
["يناير"]
["يناير"]
["يناير"]
["يناير"]
[{"$f":"TEXT(H3170,\"mmmm\")","v":"يناير"}]
["يناير"]
["يناير"]
["يناير"]
["يناير"]
["يناير"]
["يناير"]
["يناير"]
["يناير"]
["يناير"]
["يناير"]
["يناير"]
["يناير"]
["يناير"]
["يناير"]
["يناير"]
["يناير"]
["يناير"]
["يناير"]
["يناير"]
["يناير"]
["يناير"]
["يناير"]
["يناير"]
["يناير"]
["يناير"]
["يناير"]
["يناير"]
["يناير"]
["يناير"]
["يناير"]
["يناير"]
["يناير"]
["يناير"]
["يناير"]
["يناير"]
["يناير"]
["يناير"]
["يناير"]
["يناير"]
["يناير"]
["يناير"]
["يناير"]
["يناير"]
["يناير"]
["يناير"]
["يناير"]
["يناير"]
["يناير"]
["يناير"]
["يناير"]
["يناير"]
["يناير"]
["يناير"]
["يناير"]
["يناير"]
["يناير"]
["يناير"]
["يناير"]
["يناير"]
["يناير"]
["يناير"]
["يناير"]
["يناير"]
[{"$f":"TEXT(H3234,\"mmmm\")","v":"يناير"}]
["يناير"]
["يناير"]
["يناير"]
["يناير"]
["يناير"]
["يناير"]
["يناير"]
["يناير"]
["يناير"]
["يناير"]
["يناير"]
["يناير"]
["يناير"]
["يناير"]
["يناير"]
["يناير"]
["يناير"]
["يناير"]
["يناير"]
["يناير"]
["يناير"]
["يناير"]
["يناير"]
["يناير"]
["يناير"]
["يناير"]
["يناير"]
["يناير"]
["يناير"]
["يناير"]
["يناير"]
["يناير"]
["يناير"]
["يناير"]
["يناير"]
["يناير"]
["يناير"]
["يناير"]
["يناير"]
["يناير"]
["يناير"]
["يناير"]
["يناير"]
["يناير"]
["يناير"]
["يناير"]
["يناير"]
["يناير"]
["يناير"]
["يناير"]
["يناير"]
["يناير"]
["يناير"]
["يناير"]
["يناير"]
["يناير"]
["يناير"]
["يناير"]
["يناير"]
["يناير"]
["يناير"]
["يناير"]
["يناير"]
[{"$f":"TEXT(H3298,\"mmmm\")","v":"يناير"}]
["يناير"]
["يناير"]
["يناير"]
["يناير"]
["يناير"]
["يناير"]
["يناير"]
["يناير"]
["يناير"]
["يناير"]
["يناير"]
["يناير"]
["يناير"]
["يناير"]
["يناير"]
["يناير"]
["يناير"]
["يناير"]
["يناير"]
["يناير"]
["يناير"]
["يناير"]
["يناير"]
["يناير"]
["يناير"]
["يناير"]
["يناير"]
["يناير"]
["يناير"]
["يناير"]
["يناير"]
["يناير"]
["يناير"]
["يناير"]
["يناير"]
["يناير"]
["يناير"]
["يناير"]
["يناير"]
["يناير"]
["يناير"]
["يناير"]
["يناير"]
["يناير"]
["يناير"]
["يناير"]
["يناير"]
["يناير"]
["يناير"]
["يناير"]
["يناير"]
["يناير"]
["يناير"]
["يناير"]
["يناير"]
["يناير"]
["يناير"]
["يناير"]
["يناير"]
["يناير"]
["يناير"]
["يناير"]
["يناير"]
[{"$f":"TEXT(H3362,\"mmmm\")","v":"يناير"}]
["يناير"]
["يناير"]
["يناير"]
["يناير"]
["يناير"]
["يناير"]
["يناير"]
["يناير"]
["يناير"]
["يناير"]
["يناير"]
["يناير"]
["يناير"]
["يناير"]
["يناير"]
["يناير"]
["يناير"]
["يناير"]
["يناير"]
["يناير"]
["يناير"]
["يناير"]
["يناير"]
["يناير"]
["يناير"]
["يناير"]
["يناير"]
["يناير"]
["يناير"]
["يناير"]
["يناير"]
["يناير"]
["يناير"]
["يناير"]
["يناير"]
["يناير"]
["يناير"]
["يناير"]
["يناير"]
["يناير"]
["يناير"]
["يناير"]
["يناير"]
["يناير"]
["يناير"]
["يناير"]
["يناير"]
["يناير"]
["يناير"]
["يناير"]
["يناير"]
["يناير"]
["يناير"]
["يناير"]
["يناير"]
["يناير"]
["يناير"]
["يناير"]
["يناير"]
["يناير"]
["يناير"]
["يناير"]
["يناير"]
[{"$f":"TEXT(H3426,\"mmmm\")","v":"يناير"}]
["يناير"]
["يناير"]
["يناير"]
["يناير"]
["يناير"]
["يناير"]
["يناير"]
["يناير"]
["يناير"]
["يناير"]
["يناير"]
["يناير"]
["يناير"]
["يناير"]
["يناير"]
["يناير"]
["يناير"]
["يناير"]
["يناير"]
["يناير"]
["يناير"]
["يناير"]
["يناير"]
["يناير"]
["يناير"]
["يناير"]
["يناير"]
["يناير"]
["يناير"]
["يناير"]
["يناير"]
["يناير"]
["يناير"]
["يناير"]
["يناير"]
["يناير"]
["يناير"]
["يناير"]
["يناير"]
["يناير"]
["يناير"]
["يناير"]
["يناير"]
["يناير"]
["يناير"]
["يناير"]
["يناير"]
["يناير"]
["يناير"]
["يناير"]
["يناير"]
["يناير"]
["يناير"]
["يناير"]
["يناير"]
["يناير"]
["يناير"]
["يناير"]
["يناير"]
["يناير"]
["يناير"]
["يناير"]
["يناير"]
[{"$f":"TEXT(H3490,\"mmmm\")","v":"يناير"}]
["يناير"]
["يناير"]
["يناير"]
["يناير"]
["يناير"]
["يناير"]
["يناير"]
["يناير"]
["يناير"]
["يناير"]
["يناير"]
["يناير"]
["يناير"]
["يناير"]
["يناير"]
["يناير"]
["يناير"]
["يناير"]
["يناير"]
["يناير"]
["يناير"]
["يناير"]
["يناير"]
["يناير"]
["يناير"]
["يناير"]
["يناير"]
["يناير"]
["يناير"]
["يناير"]
["يناير"]
["يناير"]
["يناير"]
["يناير"]
["يناير"]
["يناير"]
["يناير"]
["يناير"]
["يناير"]
["يناير"]
["يناير"]
["يناير"]
["يناير"]
["يناير"]
["يناير"]
["يناير"]
["يناير"]
["يناير"]
["يناير"]
["يناير"]
["يناير"]
["يناير"]
["يناير"]
["يناير"]
["يناير"]
["يناير"]
["يناير"]
["يناير"]
["يناير"]
["يناير"]
["يناير"]
["يناير"]
["يناير"]
[{"$f":"TEXT(H3554,\"mmmm\")","v":"يناير"}]
["يناير"]
["يناير"]
["يناير"]
["يناير"]
["يناير"]
["يناير"]
["يناير"]
["يناير"]
["يناير"]
["يناير"]
["يناير"]
["يناير"]
["يناير"]
["يناير"]
["يناير"]
["يناير"]
["يناير"]
["يناير"]
["يناير"]
["يناير"]
["يناير"]
["يناير"]
["يناير"]
["يناير"]
["يناير"]
["يناير"]
["يناير"]
["يناير"]
["يناير"]
["يناير"]
["يناير"]
["يناير"]
["يناير"]
["يناير"]
["يناير"]
["يناير"]
["يناير"]
["يناير"]
["يناير"]
["يناير"]
["يناير"]
["يناير"]
["يناير"]
["يناير"]
["يناير"]
["يناير"]
["يناير"]
["يناير"]
["يناير"]
["يناير"]
["يناير"]
["يناير"]
["يناير"]
["يناير"]
["يناير"]
["يناير"]
["يناير"]
["يناير"]
["يناير"]
["يناير"]
["يناير"]
["يناير"]
["يناير"]
[{"$f":"TEXT(H3618,\"mmmm\")","v":"يناير"}]
["يناير"]
["يناير"]
["يناير"]
["يناير"]
["يناير"]
["يناير"]
["يناير"]
["يناير"]
["يناير"]
["يناير"]
["يناير"]
["يناير"]
["يناير"]
["يناير"]
["يناير"]
["يناير"]
["يناير"]
["يناير"]
["يناير"]
["يناير"]
["يناير"]
["يناير"]
["يناير"]
["يناير"]
["يناير"]
["يناير"]
["يناير"]
["يناير"]
["يناير"]
["يناير"]
["يناير"]
["يناير"]
["يناير"]
["يناير"]
["يناير"]
["يناير"]
["يناير"]
["يناير"]
["يناير"]
["يناير"]
["يناير"]
["يناير"]
["يناير"]
["يناير"]
["يناير"]
["يناير"]
["يناير"]
["يناير"]
["يناير"]
["يناير"]
["يناير"]
["يناير"]
["يناير"]
["يناير"]
["يناير"]
["يناير"]
["يناير"]
["يناير"]
["يناير"]
["يناير"]
["يناير"]
["يناير"]
["يناير"]
[{"$f":"TEXT(H3682,\"mmmm\")","v":"يناير"}]
["يناير"]
["يناير"]
["يناير"]
["يناير"]
["يناير"]
["يناير"]
["يناير"]
["يناير"]
["يناير"]
["يناير"]
["يناير"]
["يناير"]
["يناير"]
["يناير"]
["يناير"]
["يناير"]
["يناير"]
["يناير"]
["يناير"]
["يناير"]
["يناير"]
["يناير"]
["يناير"]
["يناير"]
["يناير"]
["يناير"]
["يناير"]
["يناير"]
["يناير"]
["يناير"]
["يناير"]
["يناير"]
["يناير"]
["يناير"]
["يناير"]
["يناير"]
["يناير"]
["يناير"]
["يناير"]
["يناير"]
["يناير"]
["يناير"]
["يناير"]
["يناير"]
["يناير"]
["يناير"]
["يناير"]
["يناير"]
["يناير"]
["يناير"]
["يناير"]
["يناير"]
["يناير"]
["يناير"]
["يناير"]
["يناير"]
["يناير"]
["يناير"]
["يناير"]
["يناير"]
["يناير"]
["يناير"]
["يناير"]
[{"$f":"TEXT(H3746,\"mmmm\")","v":"يناير"}]
["يناير"]
["يناير"]
["يناير"]
["يناير"]
["يناير"]
["يناير"]
["يناير"]
["يناير"]
["يناير"]
["يناير"]
["يناير"]
["يناير"]
["يناير"]
["يناير"]
["يناير"]
["يناير"]
["يناير"]
["يناير"]
["يناير"]
["يناير"]
["يناير"]
["يناير"]
["يناير"]
["يناير"]
["يناير"]
["يناير"]
["يناير"]
["يناير"]
["يناير"]
["يناير"]
["يناير"]
["يناير"]
["يناير"]
["يناير"]
["يناير"]
["يناير"]
["يناير"]
["يناير"]
["يناير"]
["يناير"]
["يناير"]
["يناير"]
["يناير"]
["يناير"]
["يناير"]
["يناير"]
["يناير"]
["يناير"]
["يناير"]
["يناير"]
["يناير"]
["يناير"]
["يناير"]
["يناير"]
["يناير"]
["يناير"]
["يناير"]
["يناير"]
["يناير"]
["يناير"]
["يناير"]
["يناير"]
["يناير"]
[{"$f":"TEXT(H3810,\"mmmm\")","v":"يناير"}]
["يناير"]
["يناير"]
["يناير"]
["يناير"]
["يناير"]
["يناير"]
["يناير"]
["يناير"]
["يناير"]
["يناير"]
["يناير"]
["يناير"]
["يناير"]
["يناير"]
["يناير"]
["يناير"]
["يناير"]
["يناير"]
["يناير"]
["يناير"]
["يناير"]
["يناير"]
["يناير"]
["يناير"]
["يناير"]
["يناير"]
["يناير"]
["يناير"]
["يناير"]
["يناير"]
["يناير"]
["يناير"]
["يناير"]
["يناير"]
["يناير"]
["يناير"]
["يناير"]
["يناير"]
["يناير"]
["يناير"]
["يناير"]
["يناير"]
["يناير"]
["يناير"]
["يناير"]
["يناير"]
["يناير"]
["يناير"]
["يناير"]
["يناير"]
["يناير"]
["يناير"]
["يناير"]
["يناير"]
["يناير"]
["يناير"]
["يناير"]
["يناير"]
["يناير"]
["يناير"]
["يناير"]
["يناير"]
["يناير"]
[{"$f":"TEXT(H3874,\"mmmm\")","v":"يناير"}]
["يناير"]
["يناير"]
["يناير"]
["يناير"]
["يناير"]
["يناير"]
["يناير"]
["يناير"]
["يناير"]
["يناير"]
["يناير"]
["يناير"]
["يناير"]
["يناير"]
["يناير"]
["يناير"]
["يناير"]
["يناير"]
["يناير"]
["يناير"]
["يناير"]
["يناير"]
["يناير"]
["يناير"]
["يناير"]
["يناير"]
["يناير"]
["يناير"]
["يناير"]
["يناير"]
["يناير"]
["يناير"]
["يناير"]
["يناير"]
["يناير"]
["يناير"]
["يناير"]
["يناير"]
["يناير"]
["يناير"]
["يناير"]
["يناير"]
["يناير"]
["يناير"]
["يناير"]
["يناير"]
["يناير"]
["يناير"]
["يناير"]
["يناير"]
["يناير"]
["يناير"]
["يناير"]
["يناير"]
["يناير"]
["يناير"]
["يناير"]
["يناير"]
["يناير"]
["يناير"]
["يناير"]
["يناير"]
["يناير"]
[{"$f":"TEXT(H3938,\"mmmm\")","v":"يناير"}]
["يناير"]
["يناير"]
["يناير"]
["يناير"]
["يناير"]
["يناير"]
["يناير"]
["يناير"]
["يناير"]
["يناير"]
["يناير"]
["يناير"]
["يناير"]
["يناير"]
["يناير"]
["يناير"]
["يناير"]
["يناير"]
["يناير"]
["يناير"]
["يناير"]
["يناير"]
["يناير"]
["يناير"]
["يناير"]
["يناير"]
["يناير"]
["يناير"]
["يناير"]
["يناير"]
["يناير"]
["يناير"]
["يناير"]
["يناير"]
["يناير"]
["يناير"]
["يناير"]
["يناير"]
["يناير"]
["يناير"]
["يناير"]
["يناير"]
["يناير"]
["يناير"]
["يناير"]
["يناير"]
["يناير"]
["يناير"]
["يناير"]
["يناير"]
["يناير"]
["يناير"]
["يناير"]
["يناير"]
["يناير"]
["يناير"]
["يناير"]
["يناير"]
["يناير"]
["يناير"]
["يناير"]
["يناير"]
["يناير"]
[{"$f":"TEXT(H4002,\"mmmm\")","v":"يناير"}]
["يناير"]
["يناير"]
["يناير"]
["يناير"]
["يناير"]
["يناير"]
["يناير"]
["يناير"]
["يناير"]
["يناير"]
["يناير"]
["يناير"]
["يناير"]
["يناير"]
["يناير"]
["يناير"]
["يناير"]
["يناير"]
["يناير"]
["يناير"]
["يناير"]
["يناير"]
["يناير"]
["يناير"]
["يناير"]
["يناير"]
["يناير"]
["يناير"]
["يناير"]
["يناير"]
["يناير"]
["يناير"]
["يناير"]
["يناير"]
["يناير"]
["يناير"]
["يناير"]
["يناير"]
["يناير"]
["يناير"]
["يناير"]
["يناير"]
["يناير"]
["يناير"]
["يناير"]
["يناير"]
["يناير"]
["يناير"]
["يناير"]
["يناير"]
["يناير"]
["يناير"]
["يناير"]
["يناير"]
["يناير"]
["يناير"]
["يناير"]
["يناير"]
["يناير"]
["يناير"]
["يناير"]
["يناير"]
["يناير"]
[{"$f":"TEXT(H4066,\"mmmm\")","v":"يناير"}]
["يناير"]
["يناير"]
["يناير"]
["يناير"]
["يناير"]
["يناير"]
["يناير"]
["يناير"]
["يناير"]
["يناير"]
["يناير"]
["يناير"]
["يناير"]
["يناير"]
["يناير"]
["يناير"]
["يناير"]
["يناير"]
["يناير"]
["يناير"]
["يناير"]
["يناير"]
["يناير"]
["يناير"]
["يناير"]
["يناير"]
["يناير"]
["يناير"]
["يناير"]
["يناير"]
["يناير"]
["يناير"]
["يناير"]
["يناير"]
["يناير"]
["يناير"]
["يناير"]
["يناير"]
["يناير"]
["يناير"]
["يناير"]
["يناير"]
["يناير"]
["يناير"]
["يناير"]
["يناير"]
["يناير"]
["يناير"]
["يناير"]
["يناير"]
["يناير"]
["يناير"]
["يناير"]
["يناير"]
["يناير"]
["يناير"]
["يناير"]
["يناير"]
["يناير"]
["يناير"]
["يناير"]
["يناير"]
["يناير"]
[{"$f":"TEXT(H4130,\"mmmm\")","v":"يناير"}]
["يناير"]
["يناير"]
["يناير"]
["يناير"]
["يناير"]
["يناير"]
["يناير"]
["يناير"]
["يناير"]
["يناير"]
["يناير"]
["يناير"]
["يناير"]
["يناير"]
["يناير"]
["يناير"]
["يناير"]
["يناير"]
["يناير"]
["يناير"]
["يناير"]
["يناير"]
["يناير"]
["يناير"]
["يناير"]
["يناير"]
["يناير"]
["يناير"]
["يناير"]
["يناير"]
["يناير"]
["يناير"]
["يناير"]
["يناير"]
["يناير"]
["يناير"]
["يناير"]
["يناير"]
["يناير"]
["يناير"]
["يناير"]
["يناير"]
["يناير"]
["يناير"]
["يناير"]
["يناير"]
["يناير"]
["يناير"]
["يناير"]
["يناير"]
["يناير"]
["يناير"]
["يناير"]
["يناير"]
["يناير"]
["يناير"]
["يناير"]
["يناير"]
["يناير"]
["يناير"]
["يناير"]
["يناير"]
["يناير"]
[{"$f":"TEXT(H4194,\"mmmm\")","v":"يناير"}]
["يناير"]
["يناير"]
["يناير"]
["يناير"]
["يناير"]
["يناير"]
["يناير"]
["يناير"]
["يناير"]
["يناير"]
["يناير"]
["يناير"]
["يناير"]
["يناير"]
["يناير"]
["يناير"]
["يناير"]
["يناير"]
["يناير"]
["يناير"]
["يناير"]
["يناير"]
["يناير"]
["يناير"]
["يناير"]
["يناير"]
["يناير"]
["يناير"]
["يناير"]
["يناير"]
["يناير"]
["يناير"]
["يناير"]
["يناير"]
["يناير"]
["يناير"]
["يناير"]
["يناير"]
["يناير"]
["يناير"]
["يناير"]
["يناير"]
["يناير"]
["يناير"]
["يناير"]
["يناير"]
["يناير"]
["يناير"]
["يناير"]
["يناير"]
["يناير"]
["يناير"]
["يناير"]
["يناير"]
["يناير"]
["يناير"]
["يناير"]
["يناير"]
["يناير"]
["يناير"]
["يناير"]
["يناير"]
["يناير"]
[{"$f":"TEXT(H4258,\"mmmm\")","v":"يناير"}]
["يناير"]
["يناير"]
["يناير"]
["يناير"]
["يناير"]
["يناير"]
["يناير"]
["يناير"]
["يناير"]
["يناير"]
["يناير"]
["يناير"]
["يناير"]
["يناير"]
["يناير"]
["يناير"]
["يناير"]
["يناير"]
["يناير"]
["يناير"]
["يناير"]
["يناير"]
["يناير"]
["يناير"]
["يناير"]
["يناير"]
["يناير"]
["يناير"]
["يناير"]
["يناير"]
["يناير"]
["يناير"]
["يناير"]
["يناير"]
["يناير"]
["يناير"]
["يناير"]
["يناير"]
["يناير"]
["يناير"]
["يناير"]
["يناير"]
["يناير"]
["يناير"]
["يناير"]
["يناير"]
["يناير"]
["يناير"]
["يناير"]
["يناير"]
["يناير"]
["يناير"]
["يناير"]
["يناير"]
["يناير"]
["يناير"]
["يناير"]
["يناير"]
["يناير"]
["يناير"]
["يناير"]
["يناير"]
["يناير"]
[{"$f":"TEXT(H4322,\"mmmm\")","v":"يناير"}]
["يناير"]
["يناير"]
["يناير"]
["يناير"]
["يناير"]
["يناير"]
["يناير"]
["يناير"]
["يناير"]
["يناير"]
["يناير"]
["يناير"]
["يناير"]
["يناير"]
["يناير"]
["يناير"]
["يناير"]
["يناير"]
["يناير"]
["يناير"]
["يناير"]
["يناير"]
["يناير"]
["يناير"]
["يناير"]
["يناير"]
["يناير"]
["يناير"]
["يناير"]
["يناير"]
["يناير"]
["يناير"]
["يناير"]
["يناير"]
["يناير"]
["يناير"]
["يناير"]
["يناير"]
["يناير"]
["يناير"]
["يناير"]
["يناير"]
["يناير"]
["يناير"]
["يناير"]
["يناير"]
["يناير"]
["يناير"]
["يناير"]
["يناير"]
["يناير"]
["يناير"]
["يناير"]
["يناير"]
["يناير"]
["يناير"]
["يناير"]
["يناير"]
["يناير"]
["يناير"]
["يناير"]
["يناير"]
["يناير"]
[{"$f":"TEXT(H4386,\"mmmm\")","v":"يناير"}]
["يناير"]
["يناير"]
["يناير"]
["يناير"]
["يناير"]
["يناير"]
["يناير"]
["يناير"]
["يناير"]
["يناير"]
["يناير"]
["يناير"]
["يناير"]
["يناير"]
["يناير"]
["يناير"]
["يناير"]
["يناير"]
["يناير"]
["يناير"]
["يناير"]
["يناير"]
["يناير"]
["يناير"]
["يناير"]
["يناير"]
["يناير"]
["يناير"]
["يناير"]
["يناير"]
["يناير"]
["يناير"]
["يناير"]
["يناير"]
["يناير"]
["يناير"]
["يناير"]
["يناير"]
["يناير"]
["يناير"]
["يناير"]
["يناير"]
["يناير"]
["يناير"]
["يناير"]
["يناير"]
["يناير"]
["يناير"]
["يناير"]
["يناير"]
["يناير"]
["يناير"]
["يناير"]
["يناير"]
["يناير"]
["يناير"]
["يناير"]
["يناير"]
["يناير"]
["يناير"]
["يناير"]
["يناير"]
["يناير"]
[{"$f":"TEXT(H4450,\"mmmm\")","v":"يناير"}]
["يناير"]
["يناير"]
["يناير"]
["يناير"]
["يناير"]
["يناير"]
["يناير"]
["يناير"]
["يناير"]
["يناير"]
["يناير"]
["يناير"]
["يناير"]
["يناير"]
["يناير"]
["يناير"]
["يناير"]
["يناير"]
["يناير"]
["يناير"]
["يناير"]
["يناير"]
["يناير"]
["يناير"]
["يناير"]
["يناير"]
["يناير"]
["يناير"]
["يناير"]
["يناير"]
["يناير"]
["يناير"]
["يناير"]
["يناير"]
["يناير"]
["يناير"]
["يناير"]
["يناير"]
["يناير"]
["يناير"]
["يناير"]
["يناير"]
["يناير"]
["يناير"]
["يناير"]
["يناير"]
["يناير"]
["يناير"]
["يناير"]
["يناير"]
["يناير"]
["يناير"]
["يناير"]
["يناير"]
["يناير"]
["يناير"]
["يناير"]
["يناير"]
["يناير"]
["يناير"]
["يناير"]
["يناير"]
["يناير"]
[{"$f":"TEXT(H4514,\"mmmm\")","v":"يناير"}]
["يناير"]
["يناير"]
["يناير"]
["يناير"]
["يناير"]
["يناير"]
["يناير"]
["يناير"]
["يناير"]
["يناير"]
["يناير"]
["يناير"]
["يناير"]
["يناير"]
["يناير"]
["يناير"]
["يناير"]
["يناير"]
["يناير"]
["يناير"]
["يناير"]
["يناير"]
["يناير"]
["يناير"]
["يناير"]
["يناير"]
["يناير"]
["يناير"]
["يناير"]
["يناير"]
["يناير"]
["يناير"]
["يناير"]
["يناير"]
["يناير"]
["يناير"]
["يناير"]
["يناير"]
["يناير"]
["يناير"]
["يناير"]
["يناير"]
["يناير"]
["يناير"]
["يناير"]
["يناير"]
["يناير"]
["يناير"]
["يناير"]
["يناير"]
["يناير"]
["يناير"]
["يناير"]
["يناير"]
["يناير"]
["يناير"]
["يناير"]
["يناير"]
["يناير"]
["يناير"]
["يناير"]
["يناير"]
["يناير"]
[{"$f":"TEXT(H4578,\"mmmm\")","v":"يناير"}]
["يناير"]
["يناير"]
["يناير"]
["يناير"]
["يناير"]
["يناير"]
["يناير"]
["يناير"]
["يناير"]
["يناير"]
["يناير"]
["يناير"]
["يناير"]
["يناير"]
["يناير"]
["يناير"]
["يناير"]
["يناير"]
["يناير"]
["يناير"]
["يناير"]
["يناير"]
["يناير"]
["يناير"]
["يناير"]
["يناير"]
["يناير"]
["يناير"]
["يناير"]
["يناير"]
["يناير"]
["يناير"]
["يناير"]
["يناير"]
["يناير"]
["يناير"]
["يناير"]
["يناير"]
["يناير"]
["يناير"]
["يناير"]
["يناير"]
["يناير"]
["يناير"]
["يناير"]
["يناير"]
["يناير"]
["يناير"]
["يناير"]
["يناير"]
["يناير"]
["يناير"]
["يناير"]
["يناير"]
["يناير"]
["يناير"]
["يناير"]
["يناير"]
["يناير"]
["يناير"]
["يناير"]
["يناير"]
["يناير"]
[{"$f":"TEXT(H4642,\"mmmm\")","v":"يناير"}]
["يناير"]
["يناير"]
["يناير"]
["يناير"]
["يناير"]
["يناير"]
["يناير"]
["يناير"]
["يناير"]
["يناير"]
["يناير"]
["يناير"]
["يناير"]
["يناير"]
["يناير"]
["يناير"]
["يناير"]
["يناير"]
["يناير"]
["يناير"]
["يناير"]
["يناير"]
["يناير"]
["يناير"]
["يناير"]
["يناير"]
["يناير"]
["يناير"]
["يناير"]
["يناير"]
["يناير"]
["يناير"]
["يناير"]
["يناير"]
["يناير"]
["يناير"]
["يناير"]
["يناير"]
["يناير"]
["يناير"]
["يناير"]
["يناير"]
["يناير"]
["يناير"]
["يناير"]
["يناير"]
["يناير"]
["يناير"]
["يناير"]
["يناير"]
["يناير"]
["يناير"]
["يناير"]
["يناير"]
["يناير"]
["يناير"]
["يناير"]
["يناير"]
["يناير"]
["يناير"]
["يناير"]
["يناير"]
["يناير"]
[{"$f":"TEXT(H4706,\"mmmm\")","v":"يناير"}]
["يناير"]
["يناير"]
["يناير"]
["يناير"]
["يناير"]
["يناير"]
["يناير"]
["يناير"]
["يناير"]
["يناير"]
["يناير"]
["يناير"]
["يناير"]
["يناير"]
["يناير"]
["يناير"]
["يناير"]
["يناير"]
["يناير"]
["يناير"]
["يناير"]
["يناير"]
["يناير"]
["يناير"]
["يناير"]
["يناير"]
["يناير"]
["يناير"]
["يناير"]
["يناير"]
["يناير"]
["يناير"]
["يناير"]
["يناير"]
["يناير"]
["يناير"]
["يناير"]
["يناير"]
["يناير"]
["يناير"]
["يناير"]
["يناير"]
["يناير"]
["يناير"]
["يناير"]
["يناير"]
["يناير"]
["يناير"]
["يناير"]
["يناير"]
["يناير"]
["يناير"]
["يناير"]
["يناير"]
["يناير"]
["يناير"]
["يناير"]
["يناير"]
["يناير"]
["يناير"]
["يناير"]
["يناير"]
["يناير"]
[{"$f":"TEXT(H4770,\"mmmm\")","v":"يناير"}]
["يناير"]
["يناير"]
["يناير"]
["يناير"]
["يناير"]
["يناير"]
["يناير"]
["يناير"]
["يناير"]
["يناير"]
["يناير"]
["يناير"]
["يناير"]
["يناير"]
["يناير"]
["يناير"]
["يناير"]
["يناير"]
["يناير"]
["يناير"]
["يناير"]
["يناير"]
["يناير"]
["يناير"]
["يناير"]
["يناير"]
["يناير"]
["يناير"]
["يناير"]
["يناير"]
["يناير"]
["يناير"]
["يناير"]
["يناير"]
["يناير"]
["يناير"]
["يناير"]
["يناير"]
["يناير"]
["يناير"]
["يناير"]
["يناير"]
["يناير"]
["يناير"]
["يناير"]
["يناير"]
["يناير"]
["يناير"]
["يناير"]
["يناير"]
["يناير"]
["يناير"]
["يناير"]
["يناير"]
["يناير"]
["يناير"]
["يناير"]
["يناير"]
["يناير"]
["يناير"]
["يناير"]
["يناير"]
["يناير"]
[{"$f":"TEXT(H4834,\"mmmm\")","v":"يناير"}]
["يناير"]
["يناير"]
["يناير"]
["يناير"]
["يناير"]
["يناير"]
["يناير"]
["يناير"]
["يناير"]
["يناير"]
["يناير"]
["يناير"]
["يناير"]
["يناير"]
["يناير"]
["يناير"]
["يناير"]
["يناير"]
["يناير"]
["يناير"]
["يناير"]
["يناير"]
["يناير"]
["يناير"]
["يناير"]
["يناير"]
["يناير"]
["يناير"]
["يناير"]
["يناير"]
["يناير"]
["يناير"]
["يناير"]
["يناير"]
["يناير"]
["يناير"]
["يناير"]
["يناير"]
["يناير"]
["يناير"]
["يناير"]
["يناير"]
["يناير"]
["يناير"]
["يناير"]
["يناير"]
["يناير"]
["يناير"]
["يناير"]
["يناير"]
["يناير"]
["يناير"]
["يناير"]
["يناير"]
["يناير"]
["يناير"]
["يناير"]
["يناير"]
["يناير"]
["يناير"]
["يناير"]
["يناير"]
["يناير"]
[{"$f":"TEXT(H4898,\"mmmm\")","v":"يناير"}]
["يناير"]
["يناير"]
["يناير"]
["يناير"]
["يناير"]

{"sheet":"find cost","index":3,"n_rows":3,"n_cols":8,"rows_kept":3,"cut":false,"hidden":true,"merged":[[0,0,0,7]]}
["Find Car's cost"]
["CAR","CHASSIS NO.","PRICE NTD","DATE","QUANTITY","Transportation ","TAX","total"]
["SUZUKI","TD01M-006739",{"$f":"VLOOKUP($B3,[1]MAY!$E$4:$K$28,2,0)","v":20000},{"$f":"VLOOKUP($B3,[1]MAY!$E$4:$K$28,3,0)","v":"2021-07-05"},{"$f":"VLOOKUP($B3,[1]MAY!$E$4:$K$28,5,0)","v":1},{"$f":"VLOOKUP($B3,[1]MAY!$E$4:$K$28,6,0)","v":3500},{"$f":"VLOOKUP($B3,[1]MAY!$E$4:$K$28,7,0)","v":150},{"$f":"SUM(F3,C3,G3)","v":23650}]

{"sheet":"total month cost","index":4,"n_rows":15,"n_cols":9,"rows_kept":15,"cut":false,"hidden":true,"merged":[[0,2,0,8]]}
[null,null,"COLCLAT  CAR'S COST"]
[null,null,"month","PRICE NTD","Commission","Transportation cost","TAX","total cost","nots"]
["يناير ",null,"January",{"$f":"SUMIF('ALL DATA'!$A$4:$J$4903,A3,'ALL DATA'!$G$4:$G$4903)","v":0},{"$f":"SUMIF('ALL DATA'!$A$4:$K$4903,A3,'ALL DATA'!$I$4:$I$4903)","v":0},{"$f":"SUMIF('ALL DATA'!$A$4:$K$4903,A3,'ALL DATA'!$K$4:$K$4903)","v":0},{"$f":"SUMIF('ALL DATA'!$A$4:$L$4903,A3,'ALL DATA'!$L$4:$L$4903)","v":0},{"$f":"SUM(D3:G3)","v":0}]
["فبراير",null,"February",{"$f":"SUMIF('ALL DATA'!$A$4:$J$4903,A4,'ALL DATA'!$G$4:$G$4903)","v":0},{"$f":"SUMIF('ALL DATA'!$A$4:$K$4903,A4,'ALL DATA'!$I$4:$I$4903)","v":0},{"$f":"SUMIF('ALL DATA'!$A$4:$K$4903,A4,'ALL DATA'!$K$4:$K$4903)","v":0},{"$f":"SUMIF('ALL DATA'!$A$4:$L$4903,A4,'ALL DATA'!$L$4:$L$4903)","v":0},{"$f":"SUM(D4:G4)","v":0}]
["مارس",null,"March",{"$f":"SUMIF('ALL DATA'!$A$4:$J$4903,A5,'ALL DATA'!$G$4:$G$4903)","v":0},{"$f":"SUMIF('ALL DATA'!$A$4:$K$4903,A5,'ALL DATA'!$I$4:$I$4903)","v":0},{"$f":"SUMIF('ALL DATA'!$A$4:$K$4903,A5,'ALL DATA'!$K$4:$K$4903)","v":0},{"$f":"SUMIF('ALL DATA'!$A$4:$L$4903,A5,'ALL DATA'!$L$4:$L$4903)","v":0},0]
["أبريل",null,"April",{"$f":"SUMIF('ALL DATA'!$A$4:$J$4903,A6,'ALL DATA'!$G$4:$G$4903)","v":0},{"$f":"SUMIF('ALL DATA'!$A$4:$K$4903,A6,'ALL DATA'!$I$4:$I$4903)","v":0},{"$f":"SUMIF('ALL DATA'!$A$4:$K$4903,A6,'ALL DATA'!$K$4:$K$4903)","v":0},{"$f":"SUMIF('ALL DATA'!$A$4:$L$4903,A6,'ALL DATA'!$L$4:$L$4903)","v":0},0]
["مايو",null,"May",{"$f":"SUMIF('ALL DATA'!$A$4:$J$4903,A7,'ALL DATA'!$G$4:$G$4903)","v":0},{"$f":"SUMIF('ALL DATA'!$A$4:$K$4903,A7,'ALL DATA'!$I$4:$I$4903)","v":0},{"$f":"SUMIF('ALL DATA'!$A$4:$K$4903,A7,'ALL DATA'!$K$4:$K$4903)","v":0},{"$f":"SUMIF('ALL DATA'!$A$4:$L$4903,A7,'ALL DATA'!$L$4:$L$4903)","v":0},0]
["يونيو",null,"June",{"$f":"SUMIF('ALL DATA'!$A$4:$J$4903,A8,'ALL DATA'!$G$4:$G$4903)","v":50000},{"$f":"SUMIF('ALL DATA'!$A$4:$K$4903,A8,'ALL DATA'!$I$4:$I$4903)","v":16500},{"$f":"SUMIF('ALL DATA'!$A$4:$K$4903,A8,'ALL DATA'!$K$4:$K$4903)","v":0},{"$f":"SUMIF('ALL DATA'!$A$4:$L$4903,A8,'ALL DATA'!$L$4:$L$4903)","v":0},66500]
["يوليو",null,"July",{"$f":"SUMIF('ALL DATA'!$A$4:$J$4903,A9,'ALL DATA'!$G$4:$G$4903)","v":0},{"$f":"SUMIF('ALL DATA'!$A$4:$K$4903,A9,'ALL DATA'!$I$4:$I$4903)","v":0},{"$f":"SUMIF('ALL DATA'!$A$4:$K$4903,A9,'ALL DATA'!$K$4:$K$4903)","v":0},{"$f":"SUMIF('ALL DATA'!$A$4:$L$4903,A9,'ALL DATA'!$L$4:$L$4903)","v":0},0]
["أغسطس",null,"August",{"$f":"SUMIF('ALL DATA'!$A$4:$J$4903,A10,'ALL DATA'!$G$4:$G$4903)","v":0},{"$f":"SUMIF('ALL DATA'!$A$4:$K$4903,A10,'ALL DATA'!$I$4:$I$4903)","v":0},{"$f":"SUMIF('ALL DATA'!$A$4:$K$4903,A10,'ALL DATA'!$K$4:$K$4903)","v":0},{"$f":"SUMIF('ALL DATA'!$A$4:$L$4903,A10,'ALL DATA'!$L$4:$L$4903)","v":0},0]
["سبتمبر",null,"September",{"$f":"SUMIF('ALL DATA'!$A$4:$J$4903,A11,'ALL DATA'!$G$4:$G$4903)","v":0},{"$f":"SUMIF('ALL DATA'!$A$4:$K$4903,A11,'ALL DATA'!$I$4:$I$4903)","v":0},{"$f":"SUMIF('ALL DATA'!$A$4:$K$4903,A11,'ALL DATA'!$K$4:$K$4903)","v":0},{"$f":"SUMIF('ALL DATA'!$A$4:$L$4903,A11,'ALL DATA'!$L$4:$L$4903)","v":0},0]
["أكتوبر",null,"October",{"$f":"SUMIF('ALL DATA'!$A$4:$J$4903,A12,'ALL DATA'!$G$4:$G$4903)","v":0},{"$f":"SUMIF('ALL DATA'!$A$4:$K$4903,A12,'ALL DATA'!$I$4:$I$4903)","v":0},{"$f":"SUMIF('ALL DATA'!$A$4:$K$4903,A12,'ALL DATA'!$K$4:$K$4903)","v":0},{"$f":"SUMIF('ALL DATA'!$A$4:$L$4903,A12,'ALL DATA'!$L$4:$L$4903)","v":0},0]
["نوفمبر",null,"November",{"$f":"SUMIF('ALL DATA'!$A$4:$J$4903,A13,'ALL DATA'!$G$4:$G$4903)","v":0},{"$f":"SUMIF('ALL DATA'!$A$4:$K$4903,A13,'ALL DATA'!$I$4:$I$4903)","v":0},{"$f":"SUMIF('ALL DATA'!$A$4:$K$4903,A13,'ALL DATA'!$K$4:$K$4903)","v":0},{"$f":"SUMIF('ALL DATA'!$A$4:$L$4903,A13,'ALL DATA'!$L$4:$L$4903)","v":0},0]
["ديسمبر",null,"December",{"$f":"SUMIF('ALL DATA'!$A$4:$J$4903,A14,'ALL DATA'!$G$4:$G$4903)","v":0},{"$f":"SUMIF('ALL DATA'!$A$4:$K$4903,A14,'ALL DATA'!$I$4:$I$4903)","v":0},{"$f":"SUMIF('ALL DATA'!$A$4:$K$4903,A14,'ALL DATA'!$K$4:$K$4903)","v":0},{"$f":"SUMIF('ALL DATA'!$A$4:$L$4903,A14,'ALL DATA'!$L$4:$L$4903)","v":0},0]
[null,null,"total",{"$f":"SUM(D3:D14)","v":50000},{"$f":"SUM(E3:E14)","v":16500},0,0,{"$f":"SUM(H3:H14)","v":66500}]